Workbook

Sheet Inicio CosCP
A25: Descargue la versión Kindle
K34: Miguel Cervantes Jiménez

Sheet Funcion Costo Rend.Var cp (hidden)
B1: FUNCIÒN DE COSTO
B5: PT | C5: =C13 -> 200.00
B6: a (q1^(3)) | C6: -0.0030
B7: b (q1^(2)) | C7: 0.900
B8: c (q1) | C8: 200.0
B9: d | C9: ='Oculto Cos CP'!B29 -> 0.00
B10: q1 (max) | C10: 200.0
B11: Inserte los datos correspondientes
B12: PMe | C12: ='Oculto Cos CP'!B32 -> 260.00
B13: PMg | C13: ='Oculto Cos CP'!B33 -> 200.00
B15: w1 | C15: 10.00
B16: CV(y) | C16: ='Oculto Cos CP'!B36 -> 2,000.00
B17: CF | C17: 500.00
B18: CT | C18: ='Oculto Cos CP'!B38 -> 2,500.00
B19: Inserte los datos correspondientes
B20: q1 | C20: 150.0
B21: Inserte un valor particular de q1
B22: para ilustrar sus valores respectivos
B26: Títulos
B27: Resultados
B28: Insertar datos

Sheet Graficosto (hidden)

Sheet Funcion Costo (hidden)
A1: FUNCIÒN DE COSTO
C5: CT | D5: =D17 -> 73,245.00
C6: a (y3) | D6: 0.3
C7: b (y2) | D7: -15.0
C8: c (y) | D8: 1,528.5
C9: d | D9: 7,500.0
C10: e | D10: 0.0
C11: Inserte los datos correspondientes
B13: Máxima cantidad de y | D13: 60.0 | H13: pegar | I13: 35.12875351
B14: Cantidad y (minimiza CMe) | D14: =I13 -> 35.129 | H14: min=0 | I14: =2*D6*(I13)+D7-D9*(I13^(-2)) -> -0.000399260945
B15: Inserte un valor y particular | D15: 45.0
B17: Costo total | D17: ='Oculto Cos CP'!BP14 -> 73,245.00
B18: Costo fijo | D18: ='Oculto Cos CP'!BP15 -> 7,500.00
B19: Costo variable | D19: ='Oculto Cos CP'!BP16 -> 65,745.00
B20: Costo medio | D20: ='Oculto Cos CP'!BP17 -> 1,627.67
B21: Costo marginal | D21: ='Oculto Cos CP'!BP18 -> 2,001.00
B22: Costo fijo medio | D22: ='Oculto Cos CP'!BP19 -> 166.67
B23: Costo variable medio | D23: ='Oculto Cos CP'!BP20 -> 1,461.00
B24: Costo medio (mínimo) | D24: ='Oculto Cos CP'!BP21 -> 1,585.28
B27: Títulos
B28: Resultados
B29: Insertar datos

Sheet Costo_LP (hidden)
A1: FUNCIÒN DE COSTO
A2: LARGO PLAZO
B5: y | D5: 100.0
B6: A | D6: 5.0
B7: q1 | D7: ='Oculto Cos CP'!C74 -> 20.0
B8: a | D8: 0.5
B9: q2 | D9: ='Oculto Cos CP'!C76 -> 20.0
B10: b | D10: 0.5
C11: Inserte los datos correspondientes
B13: CT | D13: ='Oculto Cos CP'!C79 -> 200.0
B14: w1 | D14: 5.0
B15: w2 | D15: 5.0
B28: Títulos
B29: Resultados
B30: Insertar datos
H57: =(($B$82/$B$84)^($B$84/($B$82+$B$84))+($B$82/$B$84)^((-$B$82)/($B$82+$B$84)))*($B$86^($B$82/($B$82+$B$84)))*($B$87^($B$84/($B$82+$B$84)))*(1/($B$82+$B$84))*(E57^((1/($B$82+$B$84))-1)) -> 
H58: =(($B$82/$B$84)^($B$84/($B$82+$B$84))+($B$82/$B$84)^((-$B$82)/($B$82+$B$84)))*($B$86^($B$82/($B$82+$B$84)))*($B$87^($B$84/($B$82+$B$84)))*(1/($B$82+$B$84))*(E58^((1/($B$82+$B$84))-1)) -> 
G81: =F76 -> 0
B82: 0.2 | G82: =G80-1 -> -1 | H82: =G81^G82 -> 

Sheet Costo_CP (hidden)
A1: FUNCIÒN DE COSTO
A2: LARGO PLAZO
B6: PARÁMETROS DE LA FUNCIÓN DE PRODUCCIÓN
B7: y | D7: 100.0
B8: A | D8: 1.0
B9: a | D9: 0.5
B10: b | D10: 0.5
B11: Inserte los datos correspondientes
B12: COSTO DE LOS FACTORES
B13: w1 | D13: 10.0
B14: w2 | D14: 1.0
B16: LARGO PLAZO
B17: CT | D17: ='Oculto Cos CP'!C118 -> 632.5
B18: q1 | D18: ='Oculto Cos CP'!C119 -> 31.6
B19: q2 | D19: ='Oculto Cos CP'!C120 -> 316.2
H20: =0.2*D19 -> 63.2455532
B21: CORTO PLAZO
B22: Q2 | C22: q1 | D22: CT
B23: =D19*0.5 -> 158.1 | C23: ='Oculto Cos CP'!C123 -> 63.2 | D23: ='Oculto Cos CP'!D123 -> 790.6
B24: =D19*0.75 -> 237.2 | C24: ='Oculto Cos CP'!C124 -> 42.2 | D24: ='Oculto Cos CP'!D124 -> 658.8
B25: =D19*1 -> 316.2 | C25: ='Oculto Cos CP'!C125 -> 31.6 | D25: ='Oculto Cos CP'!D125 -> 632.5
B26: =D19*1.25 -> 395.3 | C26: ='Oculto Cos CP'!C126 -> 25.3 | D26: ='Oculto Cos CP'!D126 -> 648.3
B27: =D19*1.5 -> 474.3 | C27: ='Oculto Cos CP'!C127 -> 21.1 | D27: ='Oculto Cos CP'!D127 -> 685.2
B30: Títulos
B31: Resultados
B32: Insertar datos
B33: Valores de equilibrio
H57: =(($B$82/$B$84)^($B$84/($B$82+$B$84))+($B$82/$B$84)^((-$B$82)/($B$82+$B$84)))*($B$86^($B$82/($B$82+$B$84)))*($B$87^($B$84/($B$82+$B$84)))*(1/($B$82+$B$84))*(E57^((1/($B$82+$B$84))-1)) -> 
G81: =F76 -> 0
B82: 0.2 | G82: =G80-1 -> -1 | H82: =G81^G82 -> 

Sheet Costo_CP_REND_VAR (hidden)
A1: FUNCIÒN DE COSTO
A2: CORTO PLAZO
B5: PARÁMETROS DE LA FUNCIÓN DE PRODUCCIÓN
B6: y | C6: A | D6: w1 | E6: w2
B7: 1,000.0 | C7: 1.0 | D7: 10.0 | E7: 15.0
B8: Inserte los datos correspondientes
B9: PARÁMETROS ALFA Y BETA
B10: a | C10: b | D10: a+b | E10: RENDIMIENTOS
B11: 0.5 | C11: 0.2 | D11: =SUM(B11:C11) -> 0.7 | E11: =IF(D11>1,"CRECIENTES",IF(D11=1,"CONSTANTES","DECRECIENTES")) -> DECRECIENTES
B12: 0.5 | C12: 0.5 | D12: =SUM(B12:C12) -> 1.0 | E12: =IF(D12>1,"CRECIENTES",IF(D12=1,"CONSTANTES","DECRECIENTES")) -> CONSTANTES
B13: 0.5 | C13: 0.8 | D13: =SUM(B13:C13) -> 1.3 | E13: =IF(D13>1,"CRECIENTES",IF(D13=1,"CONSTANTES","DECRECIENTES")) -> CRECIENTES
B15: LARGO PLAZO | C15: (a+b)>1 | D15: (a+b)=1 | E15: (a+b)<1
B16: CT | C16: ='Oculto Cos CP'!C166 -> 394,322.2 | D16: ='Oculto Cos CP'!AG166 -> 24,494.9 | E16: ='Oculto Cos CP'!BK166 -> 5,074.8
B17: q1 | C17: ='Oculto Cos CP'!C167 -> 28,165.9 | D17: ='Oculto Cos CP'!AG167 -> 1,224.7 | E17: ='Oculto Cos CP'!BK167 -> 195.2 | I17: =0.2*C18 -> 1502.179902
B18: q2 | C18: ='Oculto Cos CP'!C168 -> 7,510.9 | D18: ='Oculto Cos CP'!AG168 -> 816.5 | E18: ='Oculto Cos CP'!BK168 -> 208.2
B19: Cme | C19: =C16/B7 -> 394.3 | D19: =D16/B7 -> 24.5 | E19: =E16/B7 -> 5.1
B21: CORTO PLAZO | C21: (a+b)>1 | D21: (a+b)=1 | E21: (a+b)<1
B22: q2 Planta 1 | C22: =C18*0.5 -> 3,755.4 | D22: =D18*0.5 -> 408.2 | E22: =E18*0.5 -> 104.1
B23: q2 Planta 2 | C23: =C18*0.75 -> 5,633.2 | D23: =D18*0.75 -> 612.4 | E23: =E18*0.75 -> 156.1
B24: q2 Planta 3 | C24: =C18*1 -> 7,510.9 | D24: =D18*1 -> 816.5 | E24: =E18*1 -> 208.2
B25: q2 Planta 4 | C25: =C18*1.25 -> 9,388.6 | D25: =D18*1.25 -> 1,020.6 | E25: =E18*1.25 -> 260.2
B26: q2 Planta 5 | C26: =C18*1.5 -> 11,266.3 | D26: =D18*1.5 -> 1,224.7 | E26: =E18*1.5 -> 312.3
B28: Títulos
B29: Resultados
B30: Insertar datos
I52: =(($B$77/$B$79)^($B$79/($B$77+$B$79))+($B$77/$B$79)^((-$B$77)/($B$77+$B$79)))*($B$81^($B$77/($B$77+$B$79)))*($B$82^($B$79/($B$77+$B$79)))*(1/($B$77+$B$79))*(F52^((1/($B$77+$B$79))-1)) -> 
H76: =G71 -> 0
B77: 0.2 | H77: =H75-1 -> -1 | I77: =H76^H77 -> 
B78: Valores de equilibrio

Sheet Oculto Cos CP (hidden)
A1: ETAPAS DE LA PRODUCCIÓN | BU1: CFMe
A2: Ponderador | B2: q1 | C2: Producto Total | D2: Producto Medio | E2: Producto Marginal | F2: Costo Total | G2: Costo Fijo | H2: Costo Variable | BO2: CT | BP2: =BP14 -> 73,245.00 | BR2: Ponderador | BS2: y | BT2: Costo Total | BU2: Costo Fijo Medio | BV2: Costo Variable Medio | BW2: Costo Medio | BX2: Costo Marginal | BY2: xlin | BZ2: ylin
A3: 0 | B3: =$B$30*A3 -> 0 | C3: =$B$26*(B3^(3))+$B$27*(B3^(2))+$B$28*B3+$B$29 -> 0 | D3: 0 | E3: =3*$B$26*(B3^(2))+2*$B$27*(B3)+$B$28 -> 200.00 | F3: =G3+H3 -> 500.00 | G3: =$B$37 -> 500.00 | H3: =$B$35*B3 -> 0 | BN3: a>0 | BO3: a (y3) | BP3: ='Funcion Costo'!D6 -> 0.3 | BR3: 0 | BS3: =BR3*$BP$10 -> 0 | BT3: =$BP$3*BS3^(3)+$BP$4*BS3^(2)+$BP$5*BS3+$BP$6 -> 7500 | BU3: =$BP$15/BS3 ->  | BV3: =$BP$3*BS3^(2)+$BP$4*BS3+$BP$5 -> 1528.5 | BW3: =BV3+BU3 ->  | BX3: =3*$BP$3*BS3^(2)+2*$BP$4*BS3+$BP$5 -> 1528.5 | BY3: =$BP$12 -> 45.0 | BZ3: =MAX($BP$17:$BP$20)*BR3 -> 0.00
A4: 0.05 | B4: =$B$30*A4 -> 10.00 | C4: =$B$26*(B4^(3))+$B$27*(B4^(2))+$B$28*B4+$B$29 -> 2,087.00 | D4: =C4/B4 -> 208.70 | E4: =3*$B$26*(B4^(2))+2*$B$27*(B4)+$B$28 -> 217.10 | F4: =G4+H4 -> 600.00 | G4: 500.00 | H4: 100.00 | BN4: c>0 | BO4: b (y2) | BP4: ='Funcion Costo'!D7 -> -15.0 | BR4: =BR3+$BR$24 -> 0.05 | BS4: =BR4*$BP$10 -> 3 | BT4: =$BP$3*BS4^(3)+$BP$4*BS4^(2)+$BP$5*BS4+$BP$6 -> 11958.6 | BU4: =$BP$15/BS4 -> 2500 | BV4: =$BP$3*BS4^(2)+$BP$4*BS4+$BP$5 -> 1486.2 | BW4: =BV4+BU4 -> 3986.2 | BX4: =3*$BP$3*BS4^(2)+2*$BP$4*BS4+$BP$5 -> 1446.6 | BY4: =$BP$12 -> 45.0 | BZ4: =MAX($BP$17:$BP$20)*BR4 -> 100.05
A5: 0.10 | B5: 20.00 | C5: 4,336.00 | D5: 216.80 | E5: 232.40 | F5: 700.00 | G5: 500.00 | H5: 200.00 | BN5: d>0 | BO5: c (y) | BP5: ='Funcion Costo'!D8 -> 1,528.5 | BR5: =BR4+$BR$24 -> 0.1 | BS5: 6 | BT5: 16195.8 | BU5: 1250 | BV5: 1449.3 | BW5: 2699.3 | BX5: 1380.9 | BY5: 45.0 | BZ5: 200.10
A6: 0.15 | B6: 30.00 | C6: 6,729.00 | D6: 224.30 | E6: 245.90 | F6: 800.00 | G6: 500.00 | H6: 300.00 | BN6: b<0 | BO6: d | BP6: ='Funcion Costo'!D9 -> 7,500.0 | BR6: 0.15 | BS6: 9 | BT6: 20260.2 | BU6: 833.3333333 | BV6: 1417.8 | BW6: 2251.133333 | BX6: 1331.4 | BY6: 45.0 | BZ6: 300.15
A7: 0.20 | B7: 40.00 | C7: 9,248.00 | D7: 231.20 | E7: 257.60 | F7: 900.00 | G7: 500.00 | H7: 400.00 | BO7: e | BP7: ='Funcion Costo'!D10 -> 0.0 | BR7: 0.2 | BS7: 12 | BT7: 24200.4 | BU7: 625 | BV7: 1391.7 | BW7: 2016.7 | BX7: 1298.1 | BY7: 45.0 | BZ7: 400.20
A8: 0.25 | B8: 50.00 | C8: 11,875.00 | D8: 237.50 | E8: 267.50 | F8: 1,000.00 | G8: 500.00 | H8: 500.00 | BO8: Inserte los datos correspondientes | BR8: 0.25 | BS8: 15 | BT8: 28065 | BU8: 500 | BV8: 1371 | BW8: 1871 | BX8: 1281 | BY8: 45.0 | BZ8: 500.25
A9: 0.30 | B9: 60.00 | C9: 14,592.00 | D9: 243.20 | E9: 275.60 | F9: 1,100.00 | G9: 500.00 | H9: 600.00 | BR9: 0.3 | BS9: 18 | BT9: 31902.6 | BU9: 416.6666667 | BV9: 1355.7 | BW9: 1772.366667 | BX9: 1280.1 | BY9: 45.0 | BZ9: 600.30
A10: 0.35 | B10: 70.00 | C10: 17,381.00 | D10: 248.30 | E10: 281.90 | F10: 1,200.00 | G10: 500.00 | H10: 700.00 | BN10: Máxima cantidad de y | BP10: ='Funcion Costo'!D13 -> 60.0 | BR10: 0.35 | BS10: 21 | BT10: 35761.8 | BU10: 357.1428571 | BV10: 1345.8 | BW10: 1702.942857 | BX10: 1295.4 | BY10: 45.0 | BZ10: 700.35
A11: 0.40 | B11: 80.00 | C11: 20,224.00 | D11: 252.80 | E11: 286.40 | F11: 1,300.00 | G11: 500.00 | H11: 800.00 | BN11: Cantidad y (minimiza CMe) | BP11: ='Funcion Costo'!D14 -> 35.129 | BR11: 0.4 | BS11: 24 | BT11: 39691.2 | BU11: 312.5 | BV11: 1341.3 | BW11: 1653.8 | BX11: 1326.9 | BY11: 45.0 | BZ11: 800.40
A12: 0.45 | B12: 90.00 | C12: 23,103.00 | D12: 256.70 | E12: 289.10 | F12: 1,400.00 | G12: 500.00 | H12: 900.00 | BN12: Inserte un valor y particular | BP12: ='Funcion Costo'!D15 -> 45.0 | BR12: 0.45 | BS12: 27 | BT12: 43739.4 | BU12: 277.7777778 | BV12: 1342.2 | BW12: 1619.977778 | BX12: 1374.6 | BY12: 45.0 | BZ12: 900.45
A13: 0.50 | B13: 100.00 | C13: 26,000.00 | D13: 260.00 | E13: 290.00 | F13: 1,500.00 | G13: 500.00 | H13: 1,000.00 | BR13: 0.5 | BS13: 30 | BT13: 47955 | BU13: 250 | BV13: 1348.5 | BW13: 1598.5 | BX13: 1438.5 | BY13: 45.0 | BZ13: 1,000.50
A14: 0.55 | B14: 110.00 | C14: 28,897.00 | D14: 262.70 | E14: 289.10 | F14: 1,600.00 | G14: 500.00 | H14: 1,100.00 | BN14: Costo Total | BP14: =BP3*BP12^(3)+BP4*BP12^(2)+BP5*BP12+BP6 -> 73,245.00 | BR14: 0.55 | BS14: 33 | BT14: 52386.6 | BU14: 227.2727273 | BV14: 1360.2 | BW14: 1587.472727 | BX14: 1518.6 | BY14: 45.0 | BZ14: 1,100.55
A15: 0.60 | B15: 120.00 | C15: 31,776.00 | D15: 264.80 | E15: 286.40 | F15: 1,700.00 | G15: 500.00 | H15: 1,200.00 | BN15: Costo Fijo | BP15: =BP6 -> 7,500.00 | BR15: 0.6 | BS15: 36 | BT15: 57082.8 | BU15: 208.3333333 | BV15: 1377.3 | BW15: 1585.633333 | BX15: 1614.9 | BY15: 45.0 | BZ15: 1,200.60
A16: 0.65 | B16: 130.00 | C16: 34,619.00 | D16: 266.30 | E16: 281.90 | F16: 1,800.00 | G16: 500.00 | H16: 1,300.00 | BN16: Costo Variable | BP16: =BP3*BP12^(3)+BP4*BP12^(2)+BP5*BP12 -> 65,745.00 | BR16: 0.65 | BS16: 39 | BT16: 62092.2 | BU16: 192.3076923 | BV16: 1399.8 | BW16: 1592.107692 | BX16: 1727.4 | BY16: 45.0 | BZ16: 1,300.65
A17: 0.70 | B17: 140.00 | C17: 37,408.00 | D17: 267.20 | E17: 275.60 | F17: 1,900.00 | G17: 500.00 | H17: 1,400.00 | BN17: Costo Medio | BP17: =BP14/BP12 -> 1,627.67 | BR17: 0.7 | BS17: 42 | BT17: 67463.4 | BU17: 178.5714286 | BV17: 1427.7 | BW17: 1606.271429 | BX17: 1856.1 | BY17: 45.0 | BZ17: 1,400.70
A18: 0.75 | B18: 150.00 | C18: 40,125.00 | D18: 267.50 | E18: 267.50 | F18: 2,000.00 | G18: 500.00 | H18: 1,500.00 | BN18: Costo Marginal | BP18: =3*BP3*BP12^(2)+2*BP4*BP12+BP5 -> 2,001.00 | BR18: 0.75 | BS18: 45 | BT18: 73245 | BU18: 166.6666667 | BV18: 1461 | BW18: 1627.666667 | BX18: 2001 | BY18: 45.0 | BZ18: 1,500.75
A19: 0.80 | B19: 160.00 | C19: 42,752.00 | D19: 267.20 | E19: 257.60 | F19: 2,100.00 | G19: 500.00 | H19: 1,600.00 | BN19: Costo Fijo Medio | BP19: =BP15/BP12 -> 166.67 | BR19: 0.8 | BS19: 48 | BT19: 79485.6 | BU19: 156.25 | BV19: 1499.7 | BW19: 1655.95 | BX19: 2162.1 | BY19: 45.0 | BZ19: 1,600.80
A20: 0.85 | B20: 170.00 | C20: 45,271.00 | D20: 266.30 | E20: 245.90 | F20: 2,200.00 | G20: 500.00 | H20: 1,700.00 | BN20: Costo Variable Medio | BP20: =BP16/BP12 -> 1,461.00 | BR20: 0.85 | BS20: 51 | BT20: 86233.8 | BU20: 147.0588235 | BV20: 1543.8 | BW20: 1690.858824 | BX20: 2339.4 | BY20: 45.0 | BZ20: 1,700.85
A21: 0.90 | B21: 180.00 | C21: 47,664.00 | D21: 264.80 | E21: 232.40 | F21: 2,300.00 | G21: 500.00 | H21: 1,800.00 | BN21: Costo Medio (mínimo) | BP21: =BP3*BP11^(2)+BP4*BP11+BP5+(BP6/BP11) -> 1,585.28 | BR21: 0.9 | BS21: 54 | BT21: 93538.2 | BU21: 138.8888889 | BV21: 1593.3 | BW21: 1732.188889 | BX21: 2532.9 | BY21: 45.0 | BZ21: 1,800.90
A22: 0.95 | B22: 190.00 | C22: 49,913.00 | D22: 262.70 | E22: 217.10 | F22: 2,400.00 | G22: 500.00 | H22: 1,900.00 | BR22: 0.95 | BS22: 57 | BT22: 101447.4 | BU22: 131.5789474 | BV22: 1648.2 | BW22: 1779.778947 | BX22: 2742.6 | BY22: 45.0 | BZ22: 1,900.95
A23: 1.00 | B23: 200.00 | C23: 52,000.00 | D23: 260.00 | E23: 200.00 | F23: 2,500.00 | G23: 500.00 | H23: 2,000.00 | BR23: 1 | BS23: 60 | BT23: 110010 | BU23: 125 | BV23: 1708.5 | BW23: 1833.5 | BX23: 2968.5 | BY23: 45.0 | BZ23: 2,001.00
BR24: =1/20 -> 0.05
A25: PT | B25: =B26*(B30^(3))+B27*(B30^(2))+B28*B30+B29 -> 52,000.00 | D25: PT | E25: =E26*(E30^(3))+E27*(E30^(2))+E28*E30+E29 -> 40,125.00
A26: a (q1^(3)) | B26: ='Funcion Costo Rend.Var cp'!C6 -> -0.0 | D26: a (q1^(3)) | E26: =B26 -> -0.0
A27: b (q1^(2)) | B27: ='Funcion Costo Rend.Var cp'!C7 -> 0.9 | D27: b (q1^(2)) | E27: =B27 -> 0.9
A28: c (q1) | B28: ='Funcion Costo Rend.Var cp'!C8 -> 200.0 | D28: c (q1) | E28: =B28 -> 200.0
A29: d | B29: 0.00 | D29: d | E29: =B29 -> 0.00
A30: q1 | B30: ='Funcion Costo Rend.Var cp'!C10 -> 200.0 | D30: q1 | E30: ='Funcion Costo Rend.Var cp'!C20 -> 150.0
A31: Inserte los datos correspondientes | D31: Inserte los datos correspondientes
A32: PMe | B32: =B25/B30 -> 260.00 | D32: PMe | E32: =E25/E30 -> 267.50
A33: PMg | B33: =3*B26*(B30^(2))+2*B27*(B30)+B28 -> 200.00 | D33: PMg | E33: =3*E26*(E30^(2))+2*E27*(E30)+E28 -> 267.50
A35: w1 | B35: ='Funcion Costo Rend.Var cp'!C15 -> 10.00 | D35: w1 | E35: =B35 -> 10.00
A36: CV(y) | B36: =B35*B30 -> 2,000.00 | D36: CV(y) | E36: =E35*E30 -> 1,500.00
A37: CF | B37: ='Funcion Costo Rend.Var cp'!C17 -> 500.00 | D37: CF | E37: =B37 -> 500.00
A38: CT | B38: =B36+B37 -> 2,500.00 | D38: CT | E38: =E36+E37 -> 2,000.00
A39: Inserte los datos correspondientes
A40: q1 | B40: 100.0
A41: Inserte un valor particular de q1
A42: para ilustrar sus valores respectivos
A45: COSTOS LARGO PLAZO
A48: Ponderador | B48: Producto Total | C48: x1 | D48: Costo Total | E48: X PT | G48: Y PT | I48: X CT | K48: Y CT
A49: 0 | B49: =$C$73*(C49^$C$75)*($C$76^$C$77) -> 0 | C49: =A49*1.1*$C$74 -> 0 | D49: =($C$75+$C$77)*((B49/$C$73)^(1/($C$75+$C$77)))*(($C$80/$C$75)^($C$75/($C$75+$C$77)))*(($C$81/$C$77)^($C$77/($C$75+$C$77))) -> 0 | E49: =$C$74 -> 20.00 | F49: =A49*$C$72 -> 0 | G49: =A49*$C$74 -> 0 | H49: =$C$72 -> 100.00 | I49: =$C$72 -> 100.00 | J49: =$C$79*A49 -> 0 | K49: =A49*$C$72 -> 0 | L49: =$C$79 -> 200.00
A50: 0.05 | B50: 23.45 | C50: 1.10 | D50: =($C$75+$C$77)*((B50/$C$73)^(1/($C$75+$C$77)))*(($C$80/$C$75)^($C$75/($C$75+$C$77)))*(($C$81/$C$77)^($C$77/($C$75+$C$77))) -> 46.90 | E50: =$C$74 -> 20.00 | F50: =A50*$C$72 -> 5.00 | G50: 1.00 | H50: =$C$72 -> 100.00 | I50: 100.00 | J50: 10.00 | K50: =A50*$C$72 -> 5.00 | L50: 200.00
A51: 0.10 | B51: 33.17 | C51: 2.20 | D51: 66.33 | E51: 20.00 | F51: 10.00 | G51: 2.00 | H51: 100.00 | I51: 100.00 | J51: 20.00 | K51: 10.00 | L51: 200.00
A52: 0.15 | B52: 40.62 | C52: 3.30 | D52: 81.24 | E52: 20.00 | F52: 15.00 | G52: 3.00 | H52: 100.00 | I52: 100.00 | J52: 30.00 | K52: 15.00 | L52: 200.00
A53: 0.20 | B53: 46.90 | C53: 4.40 | D53: 93.81 | E53: 20.00 | F53: 20.00 | G53: 4.00 | H53: 100.00 | I53: 100.00 | J53: 40.00 | K53: 20.00 | L53: 200.00
A54: 0.25 | B54: 52.44 | C54: 5.50 | D54: 104.88 | E54: 20.00 | F54: 25.00 | G54: 5.00 | H54: 100.00 | I54: 100.00 | J54: 50.00 | K54: 25.00 | L54: 200.00
A55: 0.30 | B55: 57.45 | C55: 6.60 | D55: 114.89 | E55: 20.00 | F55: 30.00 | G55: 6.00 | H55: 100.00 | I55: 100.00 | J55: 60.00 | K55: 30.00 | L55: 200.00
A56: 0.35 | B56: 62.05 | C56: 7.70 | D56: 124.10 | E56: 20.00 | F56: 35.00 | G56: 7.00 | H56: 100.00 | I56: 100.00 | J56: 70.00 | K56: 35.00 | L56: 200.00
A57: 0.40 | B57: 66.33 | C57: 8.80 | D57: 132.66 | E57: 20.00 | F57: 40.00 | G57: 8.00 | H57: 100.00 | I57: 100.00 | J57: 80.00 | K57: 40.00 | L57: 200.00
A58: 0.45 | B58: 70.36 | C58: 9.90 | D58: 140.71 | E58: 20.00 | F58: 45.00 | G58: 9.00 | H58: 100.00 | I58: 100.00 | J58: 90.00 | K58: 45.00 | L58: 200.00
A59: 0.50 | B59: 74.16 | C59: 11.00 | D59: 148.32 | E59: 20.00 | F59: 50.00 | G59: 10.00 | H59: 100.00 | I59: 100.00 | J59: 100.00 | K59: 50.00 | L59: 200.00
A60: 0.55 | B60: 77.78 | C60: 12.10 | D60: 155.56 | E60: 20.00 | F60: 55.00 | G60: 11.00 | H60: 100.00 | I60: 100.00 | J60: 110.00 | K60: 55.00 | L60: 200.00
A61: 0.60 | B61: 81.24 | C61: 13.20 | D61: 162.48 | E61: 20.00 | F61: 60.00 | G61: 12.00 | H61: 100.00 | I61: 100.00 | J61: 120.00 | K61: 60.00 | L61: 200.00
A62: 0.65 | B62: 84.56 | C62: 14.30 | D62: 169.12 | E62: 20.00 | F62: 65.00 | G62: 13.00 | H62: 100.00 | I62: 100.00 | J62: 130.00 | K62: 65.00 | L62: 200.00
A63: 0.70 | B63: 87.75 | C63: 15.40 | D63: 175.50 | E63: 20.00 | F63: 70.00 | G63: 14.00 | H63: 100.00 | I63: 100.00 | J63: 140.00 | K63: 70.00 | L63: 200.00
A64: 0.75 | B64: 90.83 | C64: 16.50 | D64: 181.66 | E64: 20.00 | F64: 75.00 | G64: 15.00 | H64: 100.00 | I64: 100.00 | J64: 150.00 | K64: 75.00 | L64: 200.00
A65: 0.80 | B65: 93.81 | C65: 17.60 | D65: 187.62 | E65: 20.00 | F65: 80.00 | G65: 16.00 | H65: 100.00 | I65: 100.00 | J65: 160.00 | K65: 80.00 | L65: 200.00
A66: 0.85 | B66: 96.70 | C66: 18.70 | D66: 193.39 | E66: 20.00 | F66: 85.00 | G66: 17.00 | H66: 100.00 | I66: 100.00 | J66: 170.00 | K66: 85.00 | L66: 200.00
A67: 0.90 | B67: 99.50 | C67: 19.80 | D67: 199.00 | E67: 20.00 | F67: 90.00 | G67: 18.00 | H67: 100.00 | I67: 100.00 | J67: 180.00 | K67: 90.00 | L67: 200.00
A68: 0.95 | B68: 102.23 | C68: 20.90 | D68: 204.45 | E68: 20.00 | F68: 95.00 | G68: 19.00 | H68: 100.00 | I68: 100.00 | J68: 190.00 | K68: 95.00 | L68: 200.00
A69: 1.00 | B69: 104.88 | C69: 22.00 | D69: 209.76 | E69: 20.00 | F69: 100.00 | G69: 20.00 | H69: 100.00 | I69: 100.00 | J69: 200.00 | K69: 100.00 | L69: 200.00
B72: y | C72: =Costo_LP!D5 -> 100.0
B73: A | C73: =Costo_LP!D6 -> 5.0
B74: q1 | C74: =(C72/C73)^(1/(C75+C77))*(((C75*C81)/(C77*C80))^(C77/(C75+C77))) -> 20.0
B75: a | C75: =Costo_LP!D8 -> 0.5
B76: q2 | C76: =(C72/C73)^(1/(C75+C77))*(((C77*C80)/(C75*C81))^(C75/(C75+C77))) -> 20.0
B77: b | C77: =Costo_LP!D10 -> 0.5
B79: CT | C79: =(C75+C77)*((C72/C73)^(1/(C75+C77)))*((C80/C75)^(C75/(C75+C77)))*((C81/C77)^(C77/(C75+C77))) -> 200.0
B80: w1 | C80: =Costo_LP!D14 -> 5.00
B81: w2 | C81: =Costo_LP!D15 -> 5.00
A84: COSTOS CORTO PLAZO
A86: Ponderador | B86: x1 | C86: x2 | D86: x3 | E86: x4 | F86: x5 | G86: x LP | H86: Max X | I86: PT 1 | J86: PT 2 | K86: PT 3 | L86: PT 4 | M86: PT 5 | N86: PT LP | O86: XLINE | Q86: 1 | R86: 2 | S86: 3 | T86: 4 | U86: 5 | V86: LP | W86: YLINE | X86: PT | Y86: CT 1 | Z86: CT 2 | AA86: CT 3 | AB86: CT 4 | AC86: CT 5 | AD86: CT LP | AE86: X LINE | AF86: X | AG86: Y | AH86: A | AI86: B | AJ86: C | AK86: D | AL86: E | AM86: F | AN86: CMe LP | AO86: XX 1 | AP86: PT 1 | AQ86: CT 1 MOD | AR86: CMe 1 | AS86: XX 2 | AT86: PT 2 | AU86: CT 2 MOD | AV86: CMe 2 | AW86: XX 3 | AX86: PT 3 | AY86: CT 3 MOD | AZ86: CMe 3 | BA86: XX 4 | BB86: PT 4 | BC86: CT 4 MOD | BD86: CMe 4 | BE86: XX 5 | BF86: PT 5 | BG86: CT 5 MOD | BH86: CMe 5
A87: 0 | B87: =A87*1.1*$C$123 -> 0 | C87: =A87*1.1*$C$124 -> 0 | D87: =A87*1.1*$C$125 -> 0 | E87: =A87*1.1*$C$126 -> 0 | F87: =A87*1.1*$C$127 -> 0 | G87: =A87*1.1*$C$119 -> 0 | H87: =MAX(B87,C87,D87,E87,F87,G87) -> 0 | I87: =$C$111*(H87^$C$112)*($B$123^$C$113) -> 0 | J87: =$C$111*(H87^$C$112)*($B$124^$C$113) -> 0 | K87: =$C$111*(H87^$C$112)*($B$125^$C$113) -> 0 | L87: =$C$111*(H87^$C$112)*($B$126^$C$113) -> 0 | M87: =$C$111*(H87^$C$112)*($B$127^$C$113) -> 0 | N87: =$C$111*(H87^$C$112)*($C$120^$C$113) -> 0 | O87: =MAX($C$119,$C$123:$C$127)*A87 -> 0 | P87: =$C$110 -> 100.00 | Q87: =$C$123 -> 63.25 | R87: =$C$124 -> 42.16 | S87: =$C$125 -> 31.62 | T87: =$C$126 -> 25.30 | U87: =$C$127 -> 21.08 | V87: =$C$119 -> 31.62 | W87: =A87*$C$110 -> 0 | X87: =A87*1.25*$C$110 -> 0 | Y87: =($C$115*((X87/$C$111)^(1/$C$112))*($B$123^(-$C$113/$C$112)))+($C$116*$B$123) -> 158.11 | Z87: =($C$115*((X87/$C$111)^(1/$C$112))*($B$124^(-$C$113/$C$112)))+($C$116*$B$124) -> 237.17 | AA87: =($C$115*((X87/$C$111)^(1/$C$112))*($B$125^(-$C$113/$C$112)))+($C$116*$B$125) -> 316.23 | AB87: =($C$115*((X87/$C$111)^(1/$C$112))*($B$126^(-$C$113/$C$112)))+($C$116*$B$126) -> 395.28 | AC87: =($C$115*((X87/$C$111)^(1/$C$112))*($B$127^(-$C$113/$C$112)))+($C$116*$B$127) -> 474.34 | AD87: =($C$112+$C$113)*((X87/$C$111)^(1/($C$112+$C$113)))*(($C$115/$C$112)^($C$112/($C$112+$C$113)))*(($C$116/$C$113)^($C$113/($C$112+$C$113))) -> 0 | AE87: =$C$110 -> 100.00 | AF87: =MAX($C$118,$D$123:$D$127)*A87 -> 0 | AG87: =A87*$C$110 -> 0 | AH87: =$D$123 -> 790.57 | AI87: =$D$124 -> 658.81 | AJ87: =$D$125 -> 632.46 | AK87: =$D$126 -> 648.27 | AL87: =$D$127 -> 685.16 | AM87: =$C$118 -> 632.46 | AN87: 0
A88: 0.05 | B88: =A88*1.1*$C$123 -> 3.48 | C88: =A88*1.1*$C$124 -> 2.32 | D88: =A88*1.1*$C$125 -> 1.74 | E88: =A88*1.1*$C$126 -> 1.39 | F88: =A88*1.1*$C$127 -> 1.16 | G88: 1.74 | H88: 3.48 | I88: =$C$111*(H88^$C$112)*($B$123^$C$113) -> 23.45 | J88: =$C$111*(H88^$C$112)*($B$124^$C$113) -> 28.72 | K88: =$C$111*(H88^$C$112)*($B$125^$C$113) -> 33.17 | L88: =$C$111*(H88^$C$112)*($B$126^$C$113) -> 37.08 | M88: =$C$111*(H88^$C$112)*($B$127^$C$113) -> 40.62 | N88: =$C$111*(H88^$C$112)*($C$120^$C$113) -> 33.17 | O88: =MAX($C$119,$C$123:$C$127)*A88 -> 3.16 | P88: =$C$110 -> 100.00 | Q88: =$C$123 -> 63.25 | R88: =$C$124 -> 42.16 | S88: =$C$125 -> 31.62 | T88: =$C$126 -> 25.30 | U88: =$C$127 -> 21.08 | V88: =$C$119 -> 31.62 | W88: =A88*$C$110 -> 5.00 | X88: =A88*1.25*$C$110 -> 6.25 | Y88: =($C$115*((X88/$C$111)^(1/$C$112))*($B$123^(-$C$113/$C$112)))+($C$116*$B$123) -> 160.58 | Z88: =($C$115*((X88/$C$111)^(1/$C$112))*($B$124^(-$C$113/$C$112)))+($C$116*$B$124) -> 238.82 | AA88: =($C$115*((X88/$C$111)^(1/$C$112))*($B$125^(-$C$113/$C$112)))+($C$116*$B$125) -> 317.46 | AB88: =($C$115*((X88/$C$111)^(1/$C$112))*($B$126^(-$C$113/$C$112)))+($C$116*$B$126) -> 396.27 | AC88: =($C$115*((X88/$C$111)^(1/$C$112))*($B$127^(-$C$113/$C$112)))+($C$116*$B$127) -> 475.17 | AD88: =($C$112+$C$113)*((X88/$C$111)^(1/($C$112+$C$113)))*(($C$115/$C$112)^($C$112/($C$112+$C$113)))*(($C$116/$C$113)^($C$113/($C$112+$C$113))) -> 39.53 | AE88: 100.00 | AF88: =MAX($C$118,$D$123:$D$127)*A88 -> 39.53 | AG88: =A88*$C$110 -> 5.00 | AH88: =$D$123 -> 790.57 | AI88: =$D$124 -> 658.81 | AJ88: =$D$125 -> 632.46 | AK88: =$D$126 -> 648.27 | AL88: =$D$127 -> 685.16 | AM88: =$C$118 -> 632.46 | AN88: =AD88/$X88 -> 6.32 | AO88: =IF((Y88/$X88)>$AT$109,AO89,X88) -> 18.75 | AP88: =IF((Y88/$X88)>$AT$109,AP89,X88) -> 18.75 | AQ88: =($C$115*((AP88/$C$111)^(1/$C$112))*($B$123^(-$C$113/$C$112)))+($C$116*$B$123) -> 180.35 | AR88: =AQ88/AP88 -> 9.62 | AS88: =IF((Z88/$X88)>$AT$109,AS89,X88) -> 25.00 | AT88: =IF((Z88/$X88)>$AT$109,AT89,X88) -> 25.00 | AU88: =($C$115*((AT88/$C$111)^(1/$C$112))*($B$124^(-$C$113/$C$112)))+($C$116*$B$124) -> 263.52 | AV88: =AU88/AT88 -> 10.54 | AW88: =IF((AA88/$X88)>$AT$109,AW89,X88) -> 31.25 | AX88: =IF((AA88/$X88)>$AT$109,AX89,X88) -> 31.25 | AY88: =($C$115*((AX88/$C$111)^(1/$C$112))*($B$125^(-$C$113/$C$112)))+($C$116*$B$125) -> 347.11 | AZ88: =AY88/AX88 -> 11.11 | BA88: =IF((AB88/$X88)>$AT$109,BA89,X88) -> 37.50 | BB88: =IF((AB88/$X88)>$AT$109,BB89,X88) -> 37.50 | BC88: =($C$115*((BB88/$C$111)^(1/$C$112))*($B$126^(-$C$113/$C$112)))+($C$116*$B$126) -> 430.86 | BD88: =BC88/BB88 -> 11.49 | BE88: =IF((AC88/$X88)>$AT$109,BE89,X88) -> 43.75 | BF88: =IF((AC88/$X88)>$AT$109,BF89,X88) -> 43.75 | BG88: =($C$115*((BF88/$C$111)^(1/$C$112))*($B$127^(-$C$113/$C$112)))+($C$116*$B$127) -> 514.69 | BH88: =BG88/BF88 -> 11.76
A89: 0.10 | B89: 6.96 | C89: 4.64 | D89: 3.48 | E89: 2.78 | F89: 2.32 | G89: 3.48 | H89: 6.96 | I89: 33.17 | J89: 40.62 | K89: 46.90 | L89: 52.44 | M89: 57.45 | N89: 46.90 | O89: 6.32 | P89: 100.00 | Q89: 63.25 | R89: 42.16 | S89: 31.62 | T89: 25.30 | U89: 21.08 | V89: 31.62 | W89: 10.00 | X89: 12.50 | Y89: 168.00 | Z89: 243.76 | AA89: 321.17 | AB89: 399.24 | AC89: 477.64 | AD89: 79.06 | AE89: 100.00 | AF89: 79.06 | AG89: 10.00 | AH89: 790.57 | AI89: 658.81 | AJ89: 632.46 | AK89: 648.27 | AL89: 685.16 | AM89: 632.46 | AN89: 6.32 | AO89: 18.75 | AP89: =IF((Y89/$X89)>$AT$109,AP90,X89) -> 18.75 | AQ89: 180.35 | AR89: =AQ89/AP89 -> 9.62 | AS89: 25.00 | AT89: 25.00 | AU89: =($C$115*((AT89/$C$111)^(1/$C$112))*($B$124^(-$C$113/$C$112)))+($C$116*$B$124) -> 263.52 | AV89: =AU89/AT89 -> 10.54 | AW89: 31.25 | AX89: 31.25 | AY89: =($C$115*((AX89/$C$111)^(1/$C$112))*($B$125^(-$C$113/$C$112)))+($C$116*$B$125) -> 347.11 | AZ89: =AY89/AX89 -> 11.11 | BA89: 37.50 | BB89: 37.50 | BC89: =($C$115*((BB89/$C$111)^(1/$C$112))*($B$126^(-$C$113/$C$112)))+($C$116*$B$126) -> 430.86 | BD89: =BC89/BB89 -> 11.49 | BE89: 43.75 | BF89: 43.75 | BG89: =($C$115*((BF89/$C$111)^(1/$C$112))*($B$127^(-$C$113/$C$112)))+($C$116*$B$127) -> 514.69 | BH89: =BG89/BF89 -> 11.76
A90: 0.15 | B90: 10.44 | C90: 6.96 | D90: 5.22 | E90: 4.17 | F90: 3.48 | G90: 5.22 | H90: 10.44 | I90: 40.62 | J90: 49.75 | K90: 57.45 | L90: 64.23 | M90: 70.36 | N90: 57.45 | O90: 9.49 | P90: 100.00 | Q90: 63.25 | R90: 42.16 | S90: 31.62 | T90: 25.30 | U90: 21.08 | V90: 31.62 | W90: 15.00 | X90: 18.75 | Y90: 180.35 | Z90: 251.99 | AA90: 327.35 | AB90: 404.18 | AC90: 481.75 | AD90: 118.59 | AE90: 100.00 | AF90: 118.59 | AG90: 15.00 | AH90: 790.57 | AI90: 658.81 | AJ90: 632.46 | AK90: 648.27 | AL90: 685.16 | AM90: 632.46 | AN90: 6.32 | AO90: 18.75 | AP90: 18.75 | AQ90: 180.35 | AR90: 9.62 | AS90: 25.00 | AT90: 25.00 | AU90: 263.52 | AV90: 10.54 | AW90: 31.25 | AX90: 31.25 | AY90: 347.11 | AZ90: 11.11 | BA90: 37.50 | BB90: 37.50 | BC90: 430.86 | BD90: 11.49 | BE90: 43.75 | BF90: 43.75 | BG90: 514.69 | BH90: 11.76
A91: 0.20 | B91: 13.91 | C91: 9.28 | D91: 6.96 | E91: 5.57 | F91: 4.64 | G91: 6.96 | H91: 13.91 | I91: 46.90 | J91: 57.45 | K91: 66.33 | L91: 74.16 | M91: 81.24 | N91: 66.33 | O91: 12.65 | P91: 100.00 | Q91: 63.25 | R91: 42.16 | S91: 31.62 | T91: 25.30 | U91: 21.08 | V91: 31.62 | W91: 20.00 | X91: 25.00 | Y91: 197.64 | Z91: 263.52 | AA91: 335.99 | AB91: 411.10 | AC91: 487.52 | AD91: 158.11 | AE91: 100.00 | AF91: 158.11 | AG91: 20.00 | AH91: 790.57 | AI91: 658.81 | AJ91: 632.46 | AK91: 648.27 | AL91: 685.16 | AM91: 632.46 | AN91: 6.32 | AO91: 25.00 | AP91: 25.00 | AQ91: 197.64 | AR91: 7.91 | AS91: 25.00 | AT91: 25.00 | AU91: 263.52 | AV91: 10.54 | AW91: 31.25 | AX91: 31.25 | AY91: 347.11 | AZ91: 11.11 | BA91: 37.50 | BB91: 37.50 | BC91: 430.86 | BD91: 11.49 | BE91: 43.75 | BF91: 43.75 | BG91: 514.69 | BH91: 11.76
A92: 0.25 | B92: 17.39 | C92: 11.60 | D92: 8.70 | E92: 6.96 | F92: 5.80 | G92: 8.70 | H92: 17.39 | I92: 52.44 | J92: 64.23 | K92: 74.16 | L92: 82.92 | M92: 90.83 | N92: 74.16 | O92: 15.81 | P92: 100.00 | Q92: 63.25 | R92: 42.16 | S92: 31.62 | T92: 25.30 | U92: 21.08 | V92: 31.62 | W92: 25.00 | X92: 31.25 | Y92: 219.88 | Z92: 278.35 | AA92: 347.11 | AB92: 419.99 | AC92: 494.93 | AD92: 197.64 | AE92: 100.00 | AF92: 197.64 | AG92: 25.00 | AH92: 790.57 | AI92: 658.81 | AJ92: 632.46 | AK92: 648.27 | AL92: 685.16 | AM92: 632.46 | AN92: 6.32 | AO92: 31.25 | AP92: 31.25 | AQ92: 219.88 | AR92: 7.04 | AS92: 31.25 | AT92: 31.25 | AU92: 278.35 | AV92: 8.91 | AW92: 31.25 | AX92: 31.25 | AY92: 347.11 | AZ92: 11.11 | BA92: 37.50 | BB92: 37.50 | BC92: 430.86 | BD92: 11.49 | BE92: 43.75 | BF92: 43.75 | BG92: 514.69 | BH92: 11.76
A93: 0.30 | B93: 20.87 | C93: 13.91 | D93: 10.44 | E93: 8.35 | F93: 6.96 | G93: 10.44 | H93: 20.87 | I93: 57.45 | J93: 70.36 | K93: 81.24 | L93: 90.83 | M93: 99.50 | N93: 81.24 | O93: 18.97 | P93: 100.00 | Q93: 63.25 | R93: 42.16 | S93: 31.62 | T93: 25.30 | U93: 21.08 | V93: 31.62 | W93: 30.00 | X93: 37.50 | Y93: 247.05 | Z93: 296.46 | AA93: 360.70 | AB93: 430.86 | AC93: 503.99 | AD93: 237.17 | AE93: 100.00 | AF93: 237.17 | AG93: 30.00 | AH93: 790.57 | AI93: 658.81 | AJ93: 632.46 | AK93: 648.27 | AL93: 685.16 | AM93: 632.46 | AN93: 6.32 | AO93: 37.50 | AP93: 37.50 | AQ93: 247.05 | AR93: 6.59 | AS93: 37.50 | AT93: 37.50 | AU93: 296.46 | AV93: 7.91 | AW93: 37.50 | AX93: 37.50 | AY93: 360.70 | AZ93: 9.62 | BA93: 37.50 | BB93: 37.50 | BC93: 430.86 | BD93: 11.49 | BE93: 43.75 | BF93: 43.75 | BG93: 514.69 | BH93: 11.76
A94: 0.35 | B94: 24.35 | C94: 16.23 | D94: 12.17 | E94: 9.74 | F94: 8.12 | G94: 12.17 | H94: 24.35 | I94: 62.05 | J94: 75.99 | K94: 87.75 | L94: 98.11 | M94: 107.47 | N94: 87.75 | O94: 22.14 | P94: 100.00 | Q94: 63.25 | R94: 42.16 | S94: 31.62 | T94: 25.30 | U94: 21.08 | V94: 31.62 | W94: 35.00 | X94: 43.75 | Y94: 279.17 | Z94: 317.87 | AA94: 376.76 | AB94: 443.71 | AC94: 514.69 | AD94: 276.70 | AE94: 100.00 | AF94: 276.70 | AG94: 35.00 | AH94: 790.57 | AI94: 658.81 | AJ94: 632.46 | AK94: 648.27 | AL94: 685.16 | AM94: 632.46 | AN94: 6.32 | AO94: 43.75 | AP94: 43.75 | AQ94: 279.17 | AR94: 6.38 | AS94: 43.75 | AT94: 43.75 | AU94: 317.87 | AV94: 7.27 | AW94: 43.75 | AX94: 43.75 | AY94: 376.76 | AZ94: 8.61 | BA94: 43.75 | BB94: 43.75 | BC94: 443.71 | BD94: 10.14 | BE94: 43.75 | BF94: 43.75 | BG94: 514.69 | BH94: 11.76
A95: 0.40 | B95: 27.83 | C95: 18.55 | D95: 13.91 | E95: 11.13 | F95: 9.28 | G95: 13.91 | H95: 27.83 | I95: 66.33 | J95: 81.24 | K95: 93.81 | L95: 104.88 | M95: 114.89 | N95: 93.81 | O95: 25.30 | P95: 100.00 | Q95: 63.25 | R95: 42.16 | S95: 31.62 | T95: 25.30 | U95: 21.08 | V95: 31.62 | W95: 40.00 | X95: 50.00 | Y95: 316.23 | Z95: 342.58 | AA95: 395.28 | AB95: 458.53 | AC95: 527.05 | AD95: 316.23 | AE95: 100.00 | AF95: 316.23 | AG95: 40.00 | AH95: 790.57 | AI95: 658.81 | AJ95: 632.46 | AK95: 648.27 | AL95: 685.16 | AM95: 632.46 | AN95: 6.32 | AO95: 50.00 | AP95: 50.00 | AQ95: 316.23 | AR95: 6.32 | AS95: 50.00 | AT95: 50.00 | AU95: 342.58 | AV95: 6.85 | AW95: 50.00 | AX95: 50.00 | AY95: 395.28 | AZ95: 7.91 | BA95: 50.00 | BB95: 50.00 | BC95: 458.53 | BD95: 9.17 | BE95: 50.00 | BF95: 50.00 | BG95: 527.05 | BH95: 10.54
A96: 0.45 | B96: 31.31 | C96: 20.87 | D96: 15.65 | E96: 12.52 | F96: 10.44 | G96: 15.65 | H96: 31.31 | I96: 70.36 | J96: 86.17 | K96: 99.50 | L96: 111.24 | M96: 121.86 | N96: 99.50 | O96: 28.46 | P96: 100.00 | Q96: 63.25 | R96: 42.16 | S96: 31.62 | T96: 25.30 | U96: 21.08 | V96: 31.62 | W96: 45.00 | X96: 56.25 | Y96: 358.23 | Z96: 370.58 | AA96: 416.28 | AB96: 475.33 | AC96: 541.05 | AD96: 355.76 | AE96: 100.00 | AF96: 355.76 | AG96: 45.00 | AH96: 790.57 | AI96: 658.81 | AJ96: 632.46 | AK96: 648.27 | AL96: 685.16 | AM96: 632.46 | AN96: 6.32 | AO96: 56.25 | AP96: 56.25 | AQ96: 358.23 | AR96: 6.37 | AS96: 56.25 | AT96: 56.25 | AU96: 370.58 | AV96: 6.59 | AW96: 56.25 | AX96: 56.25 | AY96: 416.28 | AZ96: 7.40 | BA96: 56.25 | BB96: 56.25 | BC96: 475.33 | BD96: 8.45 | BE96: 56.25 | BF96: 56.25 | BG96: 541.05 | BH96: 9.62
A97: 0.50 | B97: 34.79 | C97: 23.19 | D97: 17.39 | E97: 13.91 | F97: 11.60 | G97: 17.39 | H97: 34.79 | I97: 74.16 | J97: 90.83 | K97: 104.88 | L97: 117.26 | M97: 128.45 | N97: 104.88 | O97: 31.62 | P97: 100.00 | Q97: 63.25 | R97: 42.16 | S97: 31.62 | T97: 25.30 | U97: 21.08 | V97: 31.62 | W97: 50.00 | X97: 62.50 | Y97: 405.17 | Z97: 401.87 | AA97: 439.75 | AB97: 494.11 | AC97: 556.69 | AD97: 395.28 | AE97: 100.00 | AF97: 395.28 | AG97: 50.00 | AH97: 790.57 | AI97: 658.81 | AJ97: 632.46 | AK97: 648.27 | AL97: 685.16 | AM97: 632.46 | AN97: 6.32 | AO97: 62.50 | AP97: 62.50 | AQ97: 405.17 | AR97: 6.48 | AS97: 62.50 | AT97: 62.50 | AU97: 401.87 | AV97: 6.43 | AW97: 62.50 | AX97: 62.50 | AY97: 439.75 | AZ97: 7.04 | BA97: 62.50 | BB97: 62.50 | BC97: 494.11 | BD97: 7.91 | BE97: 62.50 | BF97: 62.50 | BG97: 556.69 | BH97: 8.91
A98: 0.55 | B98: 38.26 | C98: 25.51 | D98: 19.13 | E98: 15.31 | F98: 12.75 | G98: 19.13 | H98: 38.26 | I98: 77.78 | J98: 95.26 | K98: 110.00 | L98: 122.98 | M98: 134.72 | N98: 110.00 | O98: 34.79 | P98: 100.00 | Q98: 63.25 | R98: 42.16 | S98: 31.62 | T98: 25.30 | U98: 21.08 | V98: 31.62 | W98: 55.00 | X98: 68.75 | Y98: 457.05 | Z98: 436.46 | AA98: 465.69 | AB98: 514.86 | AC98: 573.99 | AD98: 434.81 | AE98: 100.00 | AF98: 434.81 | AG98: 55.00 | AH98: 790.57 | AI98: 658.81 | AJ98: 632.46 | AK98: 648.27 | AL98: 685.16 | AM98: 632.46 | AN98: 6.32 | AO98: 68.75 | AP98: 68.75 | AQ98: 457.05 | AR98: 6.65 | AS98: 68.75 | AT98: 68.75 | AU98: 436.46 | AV98: 6.35 | AW98: 68.75 | AX98: 68.75 | AY98: 465.69 | AZ98: 6.77 | BA98: 68.75 | BB98: 68.75 | BC98: 514.86 | BD98: 7.49 | BE98: 68.75 | BF98: 68.75 | BG98: 573.99 | BH98: 8.35
A99: 0.60 | B99: 41.74 | C99: 27.83 | D99: 20.87 | E99: 16.70 | F99: 13.91 | G99: 20.87 | H99: 41.74 | I99: 81.24 | J99: 99.50 | K99: 114.89 | L99: 128.45 | M99: 140.71 | N99: 114.89 | O99: 37.95 | P99: 100.00 | Q99: 63.25 | R99: 42.16 | S99: 31.62 | T99: 25.30 | U99: 21.08 | V99: 31.62 | W99: 60.00 | X99: 75.00 | Y99: 513.87 | Z99: 474.34 | AA99: 494.11 | AB99: 537.59 | AC99: 592.93 | AD99: 474.34 | AE99: 100.00 | AF99: 474.34 | AG99: 60.00 | AH99: 790.57 | AI99: 658.81 | AJ99: 632.46 | AK99: 648.27 | AL99: 685.16 | AM99: 632.46 | AN99: 6.32 | AO99: 75.00 | AP99: 75.00 | AQ99: 513.87 | AR99: 6.85 | AS99: 75.00 | AT99: 75.00 | AU99: 474.34 | AV99: 6.32 | AW99: 75.00 | AX99: 75.00 | AY99: 494.11 | AZ99: 6.59 | BA99: 75.00 | BB99: 75.00 | BC99: 537.59 | BD99: 7.17 | BE99: 75.00 | BF99: 75.00 | BG99: 592.93 | BH99: 7.91
A100: 0.65 | B100: 45.22 | C100: 30.15 | D100: 22.61 | E100: 18.09 | F100: 15.07 | G100: 22.61 | H100: 45.22 | I100: 84.56 | J100: 103.56 | K100: 119.58 | L100: 133.70 | M100: 146.46 | N100: 119.58 | O100: 41.11 | P100: 100.00 | Q100: 63.25 | R100: 42.16 | S100: 31.62 | T100: 25.30 | U100: 21.08 | V100: 31.62 | W100: 65.00 | X100: 81.25 | Y100: 575.63 | Z100: 515.52 | AA100: 524.99 | AB100: 562.29 | AC100: 613.51 | AD100: 513.87 | AE100: 100.00 | AF100: 513.87 | AG100: 65.00 | AH100: 790.57 | AI100: 658.81 | AJ100: 632.46 | AK100: 648.27 | AL100: 685.16 | AM100: 632.46 | AN100: 6.32 | AO100: 81.25 | AP100: 81.25 | AQ100: 575.63 | AR100: 7.08 | AS100: 81.25 | AT100: 81.25 | AU100: 515.52 | AV100: 6.34 | AW100: 81.25 | AX100: 81.25 | AY100: 524.99 | AZ100: 6.46 | BA100: 81.25 | BB100: 81.25 | BC100: 562.29 | BD100: 6.92 | BE100: 81.25 | BF100: 81.25 | BG100: 613.51 | BH100: 7.55
A101: 0.70 | B101: 48.70 | C101: 32.47 | D101: 24.35 | E101: 19.48 | F101: 16.23 | G101: 24.35 | H101: 48.70 | I101: 87.75 | J101: 107.47 | K101: 124.10 | L101: 138.74 | M101: 151.99 | N101: 124.10 | O101: 44.27 | P101: 100.00 | Q101: 63.25 | R101: 42.16 | S101: 31.62 | T101: 25.30 | U101: 21.08 | V101: 31.62 | W101: 70.00 | X101: 87.50 | Y101: 642.34 | Z101: 559.99 | AA101: 558.34 | AB101: 588.97 | AC101: 635.75 | AD101: 553.40 | AE101: 100.00 | AF101: 553.40 | AG101: 70.00 | AH101: 790.57 | AI101: 658.81 | AJ101: 632.46 | AK101: 648.27 | AL101: 685.16 | AM101: 632.46 | AN101: 6.32 | AO101: 87.50 | AP101: 87.50 | AQ101: 642.34 | AR101: 7.34 | AS101: 87.50 | AT101: 87.50 | AU101: 559.99 | AV101: 6.40 | AW101: 87.50 | AX101: 87.50 | AY101: 558.34 | AZ101: 6.38 | BA101: 87.50 | BB101: 87.50 | BC101: 588.97 | BD101: 6.73 | BE101: 87.50 | BF101: 87.50 | BG101: 635.75 | BH101: 7.27
A102: 0.75 | B102: 52.18 | C102: 34.79 | D102: 26.09 | E102: 20.87 | F102: 17.39 | G102: 26.09 | H102: 52.18 | I102: 90.83 | J102: 111.24 | K102: 128.45 | L102: 143.61 | M102: 157.32 | N102: 128.45 | O102: 47.43 | P102: 100.00 | Q102: 63.25 | R102: 42.16 | S102: 31.62 | T102: 25.30 | U102: 21.08 | V102: 31.62 | W102: 75.00 | X102: 93.75 | Y102: 713.98 | Z102: 607.75 | AA102: 594.16 | AB102: 617.63 | AC102: 659.63 | AD102: 592.93 | AE102: 100.00 | AF102: 592.93 | AG102: 75.00 | AH102: 790.57 | AI102: 658.81 | AJ102: 632.46 | AK102: 648.27 | AL102: 685.16 | AM102: 632.46 | AN102: 6.32 | AO102: 93.75 | AP102: 93.75 | AQ102: 713.98 | AR102: 7.62 | AS102: 93.75 | AT102: 93.75 | AU102: 607.75 | AV102: 6.48 | AW102: 93.75 | AX102: 93.75 | AY102: 594.16 | AZ102: 6.34 | BA102: 93.75 | BB102: 93.75 | BC102: 617.63 | BD102: 6.59 | BE102: 93.75 | BF102: 93.75 | BG102: 659.63 | BH102: 7.04
A103: 0.80 | B103: 55.66 | C103: 37.10 | D103: 27.83 | E103: 22.26 | F103: 18.55 | G103: 27.83 | H103: 55.66 | I103: 93.81 | J103: 114.89 | K103: 132.66 | L103: 148.32 | M103: 162.48 | N103: 132.66 | O103: 50.60 | P103: 100.00 | Q103: 63.25 | R103: 42.16 | S103: 31.62 | T103: 25.30 | U103: 21.08 | V103: 31.62 | W103: 80.00 | X103: 100.00 | Y103: 790.57 | Z103: 658.81 | AA103: 632.46 | AB103: 648.27 | AC103: 685.16 | AD103: 632.46 | AE103: 100.00 | AF103: 632.46 | AG103: 80.00 | AH103: 790.57 | AI103: 658.81 | AJ103: 632.46 | AK103: 648.27 | AL103: 685.16 | AM103: 632.46 | AN103: 6.32 | AO103: 100.00 | AP103: 100.00 | AQ103: 790.57 | AR103: 7.91 | AS103: 100.00 | AT103: 100.00 | AU103: 658.81 | AV103: 6.59 | AW103: 100.00 | AX103: 100.00 | AY103: 632.46 | AZ103: 6.32 | BA103: 100.00 | BB103: 100.00 | BC103: 648.27 | BD103: 6.48 | BE103: 100.00 | BF103: 100.00 | BG103: 685.16 | BH103: 6.85
A104: 0.85 | B104: 59.13 | C104: 39.42 | D104: 29.57 | E104: 23.65 | F104: 19.71 | G104: 29.57 | H104: 59.13 | I104: 96.70 | J104: 118.43 | K104: 136.75 | L104: 152.89 | M104: 167.48 | N104: 136.75 | O104: 53.76 | P104: 100.00 | Q104: 63.25 | R104: 42.16 | S104: 31.62 | T104: 25.30 | U104: 21.08 | V104: 31.62 | W104: 85.00 | X104: 106.25 | Y104: 872.10 | Z104: 713.16 | AA104: 673.22 | AB104: 680.88 | AC104: 712.34 | AD104: 671.98 | AE104: 100.00 | AF104: 671.98 | AG104: 85.00 | AH104: 790.57 | AI104: 658.81 | AJ104: 632.46 | AK104: 648.27 | AL104: 685.16 | AM104: 632.46 | AN104: 6.32 | AO104: 106.25 | AP104: 106.25 | AQ104: 872.10 | AR104: 8.21 | AS104: 106.25 | AT104: 106.25 | AU104: 713.16 | AV104: 6.71 | AW104: 106.25 | AX104: 106.25 | AY104: 673.22 | AZ104: 6.34 | BA104: 106.25 | BB104: 106.25 | BC104: 680.88 | BD104: 6.41 | BE104: 106.25 | BF104: 106.25 | BG104: 712.34 | BH104: 6.70
A105: 0.90 | B105: 62.61 | C105: 41.74 | D105: 31.31 | E105: 25.05 | F105: 20.87 | G105: 31.31 | H105: 62.61 | I105: 99.50 | J105: 121.86 | K105: 140.71 | L105: 157.32 | M105: 172.34 | N105: 140.71 | O105: 56.92 | P105: 100.00 | Q105: 63.25 | R105: 42.16 | S105: 31.62 | T105: 25.30 | U105: 21.08 | V105: 31.62 | W105: 90.00 | X105: 112.50 | Y105: 958.57 | Z105: 770.81 | AA105: 716.45 | AB105: 715.47 | AC105: 741.16 | AD105: 711.51 | AE105: 100.00 | AF105: 711.51 | AG105: 90.00 | AH105: 790.57 | AI105: 658.81 | AJ105: 632.46 | AK105: 648.27 | AL105: 685.16 | AM105: 632.46 | AN105: 6.32 | AO105: 112.50 | AP105: 112.50 | AQ105: 958.57 | AR105: 8.52 | AS105: 112.50 | AT105: 112.50 | AU105: 770.81 | AV105: 6.85 | AW105: 112.50 | AX105: 112.50 | AY105: 716.45 | AZ105: 6.37 | BA105: 112.50 | BB105: 112.50 | BC105: 715.47 | BD105: 6.36 | BE105: 112.50 | BF105: 112.50 | BG105: 741.16 | BH105: 6.59
A106: 0.95 | B106: 66.09 | C106: 44.06 | D106: 33.05 | E106: 26.44 | F106: 22.03 | G106: 33.05 | H106: 66.09 | I106: 102.23 | J106: 125.20 | K106: 144.57 | L106: 161.63 | M106: 177.06 | N106: 144.57 | O106: 60.08 | P106: 100.00 | Q106: 63.25 | R106: 42.16 | S106: 31.62 | T106: 25.30 | U106: 21.08 | V106: 31.62 | W106: 95.00 | X106: 118.75 | Y106: 1,049.98 | Z106: 831.74 | AA106: 762.16 | AB106: 752.03 | AC106: 771.63 | AD106: 751.04 | AE106: =$C$110 -> 100.00 | AF106: 751.04 | AG106: 95.00 | AH106: 790.57 | AI106: 658.81 | AJ106: 632.46 | AK106: 648.27 | AL106: 685.16 | AM106: 632.46 | AN106: 6.32 | AO106: 118.75 | AP106: 118.75 | AQ106: 1,049.98 | AR106: =AQ106/AP106 -> 8.84 | AS106: 118.75 | AT106: 118.75 | AU106: 831.74 | AV106: 7.00 | AW106: 118.75 | AX106: 118.75 | AY106: 762.16 | AZ106: 6.42 | BA106: 118.75 | BB106: 118.75 | BC106: 752.03 | BD106: 6.33 | BE106: 118.75 | BF106: 118.75 | BG106: 771.63 | BH106: 6.50
A107: 1.00 | B107: 69.57 | C107: 46.38 | D107: 34.79 | E107: 27.83 | F107: 23.19 | G107: 34.79 | H107: 69.57 | I107: 104.88 | J107: 128.45 | K107: 148.32 | L107: 165.83 | M107: 181.66 | N107: 148.32 | O107: 63.25 | P107: 100.00 | Q107: 63.25 | R107: 42.16 | S107: 31.62 | T107: 25.30 | U107: 21.08 | V107: 31.62 | W107: 100.00 | X107: 125.00 | Y107: 1,146.33 | Z107: 895.98 | AA107: 810.33 | AB107: 790.57 | AC107: 803.75 | AD107: 790.57 | AE107: =$C$110 -> 100.00 | AF107: 790.57 | AG107: 100.00 | AH107: 790.57 | AI107: 658.81 | AJ107: 632.46 | AK107: 648.27 | AL107: 685.16 | AM107: 632.46 | AN107: 6.32 | AO107: =IF((Y107/$X107)>$AT$109,AZ108,X107) -> 125.00 | AP107: =IF((Y107/$X107)>$AT$109,AZ109,X107) -> 125.00 | AQ107: 1,146.33 | AR107: =AQ107/AP107 -> 9.17 | AS107: =IF((Z107/$X107)>$AT$109,BD108,X107) -> 125.00 | AT107: =IF((Z107/$X107)>$AT$109,BD109,X107) -> 125.00 | AU107: 895.98 | AV107: 7.17 | AW107: =IF((AA107/$X107)>$AT$109,BH108,X107) -> 125.00 | AX107: =IF((AA107/$X107)>$AT$109,BH109,X107) -> 125.00 | AY107: 810.33 | AZ107: 6.48 | BA107: =IF((AB107/$X107)>$AT$109,BL108,X107) -> 125.00 | BB107: =IF((AB107/$X107)>$AT$109,BL109,X107) -> 125.00 | BC107: 790.57 | BD107: 6.32 | BE107: =IF((AC107/$X107)>$AT$109,BP108,X107) -> 125.00 | BF107: =IF((AC107/$X107)>$AT$109,BP109,X107) -> 125.00 | BG107: 803.75 | BH107: 6.43
AT109: =C129*2 -> 12.65 | AZ109: =MAX(AO88:AO107) -> 125.00 | BD109: =MAX(AS88:AS107) -> 125.00 | BH109: =MAX(AW88:AW107) -> 125.00 | BL109: =MAX(BA88:BA107) -> 125.00 | BP109: =MAX(BE88:BE107) -> 125.00
B110: y | C110: =Costo_CP!D7 -> 100.0
B111: A | C111: =Costo_CP!D8 -> 1.0
B112: a | C112: =Costo_CP!D9 -> 0.5
B113: b | C113: =Costo_CP!D10 -> 0.5
B115: w1 | C115: =Costo_CP!D13 -> 10.0
B116: w2 | C116: =Costo_CP!D14 -> 1.0
B118: CT | C118: =(C112+C113)*(($C$110/$C$111)^(1/(C112+C113)))*((C115/C112)^(C112/(C112+C113)))*((C116/C113)^(C113/(C112+C113))) -> 632.5
B119: q1 | C119: =((C110/C111)^(1/(C112+C113)))*(((C112*C116)/(C113*C115))^(C113/(C112+C113))) -> 31.6
B120: q2 | C120: =((C110/C111)^(1/(C112+C113)))*(((C113*C115)/(C112*C116))^(C112/(C112+C113))) -> 316.2
B122: Q2 | C122: q1 | D122: CT | E122: y
A123: 1 | B123: =Costo_CP!B23 -> 158.1 | C123: =(($C$110/$C$111)^(1/$C$112))*(B123^(-$C$113/$C$112)) -> 63.2 | D123: =$C$115*(($C$110/$C$111)^(1/$C$112))*(B123^(-$C$113/$C$112))+($C$116*B123) -> 790.6 | E123: =$C$111*(C123^$C$112)*(B123^$C$113) -> 100.0
A124: 2 | B124: =Costo_CP!B24 -> 237.2 | C124: =(($C$110/$C$111)^(1/$C$112))*(B124^(-$C$113/$C$112)) -> 42.2 | D124: =$C$115*(($C$110/$C$111)^(1/$C$112))*(B124^(-$C$113/$C$112))+($C$116*B124) -> 658.8 | E124: =$C$111*(C124^$C$112)*(B124^$C$113) -> 100.0
A125: 3 | B125: =Costo_CP!B25 -> 316.2 | C125: =(($C$110/$C$111)^(1/$C$112))*(B125^(-$C$113/$C$112)) -> 31.6 | D125: =$C$115*(($C$110/$C$111)^(1/$C$112))*(B125^(-$C$113/$C$112))+($C$116*B125) -> 632.5 | E125: =$C$111*(C125^$C$112)*(B125^$C$113) -> 100.0
A126: 4 | B126: =Costo_CP!B26 -> 395.3 | C126: =(($C$110/$C$111)^(1/$C$112))*(B126^(-$C$113/$C$112)) -> 25.3 | D126: =$C$115*(($C$110/$C$111)^(1/$C$112))*(B126^(-$C$113/$C$112))+($C$116*B126) -> 648.3 | E126: =$C$111*(C126^$C$112)*(B126^$C$113) -> 100.0
A127: 5 | B127: =Costo_CP!B27 -> 474.3 | C127: =(($C$110/$C$111)^(1/$C$112))*(B127^(-$C$113/$C$112)) -> 21.1 | D127: =$C$115*(($C$110/$C$111)^(1/$C$112))*(B127^(-$C$113/$C$112))+($C$116*B127) -> 685.2 | E127: =$C$111*(C127^$C$112)*(B127^$C$113) -> 100.0
B129: CMe | C129: =C118/C110 -> 6.3
A132: COSTOS CORTO PLAZO
A134: Ponderador | B134: PT | C134: CT 1 | D134: CT 2 | E134: CT 3 | F134: CT 4 | G134: CT 5 | H134: CT LP | I134: XX 1 | J134: PT 1 | K134: CT 1 MOD | L134: CMe 1 | M134: XX 2 | N134: PT 2 | O134: CT 2 MOD | P134: CMe 2 | Q134: XX 3 | R134: PT 3 | S134: CT 3 MOD | T134: CMe 3 | U134: XX 4 | V134: PT 4 | W134: CT 4 MOD | X134: CMe 4 | Y134: XX 5 | Z134: PT 5 | AA134: CT 5 MOD | AB134: CMe 5 | AC134: CMe LP | AE134: Ponderador | AF134: PT | AG134: CT 1 | AH134: CT 2 | AI134: CT 3 | AJ134: CT 4 | AK134: CT 5 | AL134: CT LP | AM134: XX 1 | AN134: PT 1 | AO134: CT 1 MOD | AP134: CMe 1 | AQ134: XX 2 | AR134: PT 2 | AS134: CT 2 MOD | AT134: CMe 2 | AU134: XX 3 | AV134: PT 3 | AW134: CT 3 MOD | AX134: CMe 3 | AY134: XX 4 | AZ134: PT 4 | BA134: CT 4 MOD | BB134: CMe 4 | BC134: XX 5 | BD134: PT 5 | BE134: CT 5 MOD | BF134: CMe 5 | BG134: CMe LP | BI134: Ponderador | BJ134: PT | BK134: CT 1 | BL134: CT 2 | BM134: CT 3 | BN134: CT 4 | BO134: CT 5 | BP134: CT LP | BQ134: XX 1 | BR134: PT 1 | BS134: CT 1 MOD | BT134: CMe 1 | BU134: XX 2 | BV134: PT 2 | BW134: CT 2 MOD | BX134: CMe 2 | BY134: XX 3 | BZ134: PT 3 | CA134: CT 3 MOD | CB134: CMe 3 | CC134: XX 4 | CD134: PT 4 | CE134: CT 4 MOD | CF134: CMe 4 | CG134: XX 5 | CH134: PT 5 | CI134: CT 5 MOD | CJ134: CMe 5 | CK134: CMe LP
A135: 0 | B135: =A135*2*$C$158 -> 0 | C135: =($C$163*((B135/$C$159)^(1/$C$160))*($B$171^(-$C$161/$C$160)))+($C$164*$B$171) -> 56,331.75 | D135: =($C$163*((B135/$C$159)^(1/$C$160))*($B$172^(-$C$161/$C$160)))+($C$164*$B$172) -> 84,497.62 | E135: =($C$163*((B135/$C$159)^(1/$C$160))*($B$173^(-$C$161/$C$160)))+($C$164*$B$173) -> 112,663.49 | F135: =($C$163*((B135/$C$159)^(1/$C$160))*($B$174^(-$C$161/$C$160)))+($C$164*$B$174) -> 140,829.37 | G135: =($C$163*((B135/$C$159)^(1/$C$160))*($B$175^(-$C$161/$C$160)))+($C$164*$B$175) -> 168,995.24 | H135: =($C$160+$C$161)*((B135/$C$159)^(1/($C$160+$C$161)))*(($C$163/$C$160)^($C$160/($C$160+$C$161)))*(($C$164/$C$161)^($C$161/($C$160+$C$161))) -> 0 | AE135: 0 | AF135: =AE135*2*$AG$158 -> 0 | AG135: =($AG$163*((AF135/$AG$159)^(1/$AG$160))*($AF$171^(-$AG$161/$AG$160)))+($AG$164*$AF$171) -> 6,123.72 | AH135: =($AG$163*((AF135/$AG$159)^(1/$AG$160))*($AF$172^(-$AG$161/$AG$160)))+($AG$164*$AF$172) -> 9,185.59 | AI135: =($AG$163*((AF135/$AG$159)^(1/$AG$160))*($AF$173^(-$AG$161/$AG$160)))+($AG$164*$AF$173) -> 12,247.45 | AJ135: =($AG$163*((AF135/$AG$159)^(1/$AG$160))*($AF$174^(-$AG$161/$AG$160)))+($AG$164*$AF$174) -> 15,309.31 | AK135: =($AG$163*((AF135/$AG$159)^(1/$AG$160))*($AF$175^(-$AG$161/$AG$160)))+($AG$164*$AF$175) -> 18,371.17 | AL135: =($AG$160+$AG$161)*((AF135/$AG$159)^(1/($AG$160+$AG$161)))*(($AG$163/$AG$160)^($AG$160/($AG$160+$AG$161)))*(($AG$164/$AG$161)^($AG$161/($AG$160+$AG$161))) -> 0 | BI135: 0 | BJ135: =BI135*2*$BK$158 -> 0 | BK135: =($BK$163*((BJ135/$BK$159)^(1/$BK$160))*($BJ$171^(-$BK$161/$BK$160)))+($BK$164*$BJ$171) -> 1,561.47 | BL135: =($BK$163*((BJ135/$BK$159)^(1/$BK$160))*($BJ$172^(-$BK$161/$BK$160)))+($BK$164*$BJ$172) -> 2,342.21 | BM135: =($BK$163*((BJ135/$BK$159)^(1/$BK$160))*($BJ$173^(-$BK$161/$BK$160)))+($BK$164*$BJ$173) -> 3,122.94 | BN135: =($BK$163*((BJ135/$BK$159)^(1/$BK$160))*($BJ$174^(-$BK$161/$BK$160)))+($BK$164*$BJ$174) -> 3,903.68 | BO135: =($BK$163*((BJ135/$BK$159)^(1/$BK$160))*($BJ$175^(-$BK$161/$BK$160)))+($BK$164*$BJ$175) -> 4,684.41 | BP135: =($BK$160+$BK$161)*((BJ135/$BK$159)^(1/($BK$160+$BK$161)))*(($BK$163/$BK$160)^($BK$160/($BK$160+$BK$161)))*(($BK$164/$BK$161)^($BK$161/($BK$160+$BK$161))) -> 0
A136: 0.05 | B136: =A136*2*$C$158 -> 100.00 | C136: =($C$163*((B136/$C$159)^(1/$C$160))*($B$171^(-$C$161/$C$160)))+($C$164*$B$171) -> 60,048.26 | D136: =($C$163*((B136/$C$159)^(1/$C$160))*($B$172^(-$C$161/$C$160)))+($C$164*$B$172) -> 87,657.70 | E136: =($C$163*((B136/$C$159)^(1/$C$160))*($B$173^(-$C$161/$C$160)))+($C$164*$B$173) -> 115,480.08 | F136: =($C$163*((B136/$C$159)^(1/$C$160))*($B$174^(-$C$161/$C$160)))+($C$164*$B$174) -> 143,405.45 | G136: =($C$163*((B136/$C$159)^(1/$C$160))*($B$175^(-$C$161/$C$160)))+($C$164*$B$175) -> 171,390.14 | H136: =($C$160+$C$161)*((B136/$C$159)^(1/($C$160+$C$161)))*(($C$163/$C$160)^($C$160/($C$160+$C$161)))*(($C$164/$C$161)^($C$161/($C$160+$C$161))) -> 14,698.73 | I136: =IF((C136/$B136)>$E$166,I137,$B136) -> 100.00 | J136: =IF((C136/$B136)>$E$166,J137,B136) -> 100.00 | K136: =($C$163*((J136/$C$159)^(1/$C$160))*($B$171^(-$C$161/$C$160)))+($C$164*$B$171) -> 60,048.26 | L136: =K136/J136 -> 600.48 | M136: =IF((D136/$B136)>$E$166,M137,$B136) -> 200.00 | N136: =IF((D136/$B136)>$E$166,N137,B136) -> 200.00 | O136: =($C$163*((N136/$C$159)^(1/$C$160))*($B$172^(-$C$161/$C$160)))+($C$164*$B$172) -> 97,137.96 | P136: =O136/N136 -> 485.69 | Q136: =IF((E136/$B136)>$E$166,Q137,$B136) -> 200.00 | R136: =IF((E136/$B136)>$E$166,R137,B136) -> 200.00 | S136: =($C$163*((R136/$C$159)^(1/$C$160))*($B$173^(-$C$161/$C$160)))+($C$164*$B$173) -> 123,929.84 | T136: =S136/R136 -> 619.65 | U136: =IF((F136/$B136)>$E$166,U137,$B136) -> 200.00 | V136: =IF((F136/$B136)>$E$166,V137,B136) -> 200.00 | W136: =($C$163*((V136/$C$159)^(1/$C$160))*($B$174^(-$C$161/$C$160)))+($C$164*$B$174) -> 151,133.68 | X136: =W136/V136 -> 755.67 | Y136: =IF((G136/$B136)>$E$166,Y137,$B136) -> 300.00 | Z136: =IF((G136/$B136)>$E$166,Z137,B136) -> 300.00 | AA136: =($C$163*((Z136/$C$159)^(1/$C$160))*($B$175^(-$C$161/$C$160)))+($C$164*$B$175) -> 190,549.31 | AB136: =AA136/Z136 -> 635.16 | AC136: =H136/B136 -> 146.99 | AE136: 0.05 | AF136: =AE136*2*$AG$158 -> 100.00 | AG136: =($AG$163*((AF136/$AG$159)^(1/$AG$160))*($AF$171^(-$AG$161/$AG$160)))+($AG$164*$AF$171) -> 6,368.67 | AH136: =($AG$163*((AF136/$AG$159)^(1/$AG$160))*($AF$172^(-$AG$161/$AG$160)))+($AG$164*$AF$172) -> 9,348.89 | AI136: =($AG$163*((AF136/$AG$159)^(1/$AG$160))*($AF$173^(-$AG$161/$AG$160)))+($AG$164*$AF$173) -> 12,369.92 | AJ136: =($AG$163*((AF136/$AG$159)^(1/$AG$160))*($AF$174^(-$AG$161/$AG$160)))+($AG$164*$AF$174) -> 15,407.29 | AK136: =($AG$163*((AF136/$AG$159)^(1/$AG$160))*($AF$175^(-$AG$161/$AG$160)))+($AG$164*$AF$175) -> 18,452.82 | AL136: =($AG$160+$AG$161)*((AF136/$AG$159)^(1/($AG$160+$AG$161)))*(($AG$163/$AG$160)^($AG$160/($AG$160+$AG$161)))*(($AG$164/$AG$161)^($AG$161/($AG$160+$AG$161))) -> 2,449.49 | AM136: =IF((AG136/$AF136)>$AI$166,AM137,$AF136) -> 200.00 | AN136: =IF((AG136/$AF136)>$AI$166,AN137,AF136) -> 200.00 | AO136: =($AG$163*((AN136/$AG$159)^(1/$AG$160))*($AF$171^(-$AG$161/$AG$160)))+($AG$164*$AF$171) -> 7,103.52 | AP136: =AO136/AN136 -> 35.52 | AQ136: =IF((AH136/$AF136)>$AI$166,AQ137,$AF136) -> 300.00 | AR136: =IF((AH136/$AF136)>$AI$166,AR137,AF136) -> 300.00 | AS136: =($AG$163*((AR136/$AG$159)^(1/$AG$160))*(AF$172^(-$AG$161/$AG$160)))+($AG$164*$AF$172) -> 10,655.28 | AT136: =AS136/AR136 -> 35.52 | AU136: =IF((AI136/$AF136)>$AI$166,AU137,$AF136) -> 300.00 | AV136: =IF((AI136/$AF136)>$AI$166,AV137,AF136) -> 300.00 | AW136: =($AG$163*((AV136/$AG$159)^(1/$AG$160))*($AF$173^(-$AG$161/$AG$160)))+($AG$164*$AF$173) -> 13,349.72 | AX136: =AW136/AV136 -> 44.50 | AY136: =IF((AJ136/$AF136)>$AI$166,AY137,$AF136) -> 400.00 | AZ136: =IF((AJ136/$AF136)>$AI$166,AZ137,AF136) -> 400.00 | BA136: =($AG$163*((AZ136/$AG$159)^(1/$AG$160))*($AF$174^(-$AG$161/$AG$160)))+($AG$164*$AF$174) -> 16,876.98 | BB136: =BA136/AZ136 -> 42.19 | BC136: =IF((AK136/$AF136)>$AI$166,BC137,$AF136) -> 500.00 | BD136: =IF((AK136/$AF136)>$AI$166,BD137,AF136) -> 500.00 | BE136: =($AG$163*((BD136/$AG$159)^(1/$AG$160))*($AF$175^(-$AG$161/$AG$160)))+($AG$164*$AF$175) -> 20,412.41 | BF136: =BE136/BD136 -> 40.82 | BG136: =AL136/AF136 -> 24.49 | BI136: 0.05 | BJ136: =BI136*2*$BK$158 -> 100.00 | BK136: =($BK$163*((BJ136/$BK$159)^(1/$BK$160))*($BJ$171^(-$BK$161/$BK$160)))+($BK$164*$BJ$171) -> 1,620.64 | BL136: =($BK$163*((BJ136/$BK$159)^(1/$BK$160))*($BJ$172^(-$BK$161/$BK$160)))+($BK$164*$BJ$172) -> 2,373.13 | BM136: =($BK$163*((BJ136/$BK$159)^(1/$BK$160))*($BJ$173^(-$BK$161/$BK$160)))+($BK$164*$BJ$173) -> 3,142.46 | BN136: =($BK$163*((BJ136/$BK$159)^(1/$BK$160))*($BJ$174^(-$BK$161/$BK$160)))+($BK$164*$BJ$174) -> 3,917.33 | BO136: =($BK$163*((BJ136/$BK$159)^(1/$BK$160))*($BJ$175^(-$BK$161/$BK$160)))+($BK$164*$BJ$175) -> 4,694.61 | BP136: =($BK$160+$BK$161)*((BJ136/$BK$159)^(1/($BK$160+$BK$161)))*(($BK$163/$BK$160)^($BK$160/($BK$160+$BK$161)))*(($BK$164/$BK$161)^($BK$161/($BK$160+$BK$161))) -> 863.35 | BQ136: =IF((BK136/$BJ136)>$BM$166,BQ137,$BJ136) -> 200.00 | BR136: =IF((BK136/$BJ136)>$BM$166,BR137,BJ136) -> 200.00 | BS136: =($BK$163*((BR136/$BK$159)^(1/$BK$160))*($BJ$171^(-$BK$161/$BK$160)))+($BK$164*$BJ$171) -> 1,798.15 | BT136: =BS136/BR136 -> 8.99 | BU136: =IF((BL136/$BJ136)>$BM$166,BU137,$BJ136) -> 300.00 | BV136: =IF((BL136/$BJ136)>$BM$166,BV137,BJ136) -> 300.00 | BW136: =($BK$163*((BV136/$BK$159)^(1/$BK$160))*(BJ$172^(-$BK$161/$BK$160)))+($BK$164*$BJ$172) -> 2,620.55 | BX136: =BW136/BV136 -> 8.74 | BY136: =IF((BM136/$BJ136)>$BM$166,BY137,$BJ136) -> 400.00 | BZ136: =IF((BM136/$BJ136)>$BM$166,BZ137,BJ136) -> 400.00 | CA136: =($BK$163*((BZ136/$BK$159)^(1/$BK$160))*($BJ$173^(-$BK$161/$BK$160)))+($BK$164*$BJ$173) -> 3,435.24 | CB136: =CA136/BZ136 -> 8.59 | CC136: =IF((BN136/$BJ136)>$BM$166,CC137,$BJ136) -> 500.00 | CD136: =IF((BN136/$BJ136)>$BM$166,CD137,BJ136) -> 500.00 | CE136: =($BK$163*((CD136/$BK$159)^(1/$BK$160))*($BJ$174^(-$BK$161/$BK$160)))+($BK$164*$BJ$174) -> 4,245.13 | CF136: =CE136/CD136 -> 8.49 | CG136: =IF((BO136/$BJ136)>$BM$166,CG137,$BJ136) -> 500.00 | CH136: =IF((BO136/$BJ136)>$BM$166,CH137,BJ136) -> 500.00 | CI136: =($BK$163*((CH136/$BK$159)^(1/$BK$160))*($BJ$175^(-$BK$161/$BK$160)))+($BK$164*$BJ$175) -> 4,939.47 | CJ136: =CI136/CH136 -> 9.88 | CK136: =BP136/BJ136 -> 8.63
A137: 0.10 | B137: 200.00 | C137: 71,197.78 | D137: 97,137.96 | E137: 123,929.84 | F137: 151,133.68 | G137: 178,574.82 | H137: 39,566.05 | I137: =IF((C137/$B137)>$E$166,I138,B137) -> 200.00 | J137: 200.00 | K137: =($C$163*((J137/$C$159)^(1/$C$160))*($B$171^(-$C$161/$C$160)))+($C$164*$B$171) -> 71,197.78 | L137: =K137/J137 -> 355.99 | M137: =IF((D137/$B137)>$E$166,M138,$B137) -> 200.00 | N137: =IF((D137/$B137)>$E$166,N138,B137) -> 200.00 | O137: =($C$163*((N137/$C$159)^(1/$C$160))*($B$172^(-$C$161/$C$160)))+($C$164*$B$172) -> 97,137.96 | P137: =O137/N137 -> 485.69 | Q137: =IF((E137/$B137)>$E$166,Q138,$B137) -> 200.00 | R137: =IF((E137/$B137)>$E$166,R138,B137) -> 200.00 | S137: =($C$163*((R137/$C$159)^(1/$C$160))*($B$173^(-$C$161/$C$160)))+($C$164*$B$173) -> 123,929.84 | T137: =S137/R137 -> 619.65 | U137: =IF((F137/$B137)>$E$166,U138,$B137) -> 200.00 | V137: =IF((F137/$B137)>$E$166,V138,B137) -> 200.00 | W137: =($C$163*((V137/$C$159)^(1/$C$160))*($B$174^(-$C$161/$C$160)))+($C$164*$B$174) -> 151,133.68 | X137: =W137/V137 -> 755.67 | Y137: =IF((G137/$B137)>$E$166,Y138,$B137) -> 300.00 | Z137: =IF((G137/$B137)>$E$166,Z138,B137) -> 300.00 | AA137: =($C$163*((Z137/$C$159)^(1/$C$160))*($B$175^(-$C$161/$C$160)))+($C$164*$B$175) -> 190,549.31 | AB137: =AA137/Z137 -> 635.16 | AC137: =H137/B137 -> 197.83 | AE137: 0.10 | AF137: 200.00 | AG137: 7,103.52 | AH137: 9,838.78 | AI137: 12,737.35 | AJ137: 15,701.23 | AK137: 18,697.77 | AL137: 4,898.98 | AM137: =IF((AG137/$AF137)>$AI$166,AM138,$AF137) -> 200.00 | AN137: =IF((AG137/$AF137)>$AI$166,AN138,AF137) -> 200.00 | AO137: =($AG$163*((AN137/$AG$159)^(1/$AG$160))*($AF$171^(-$AG$161/$AG$160)))+($AG$164*$AF$171) -> 7,103.52 | AP137: =AO137/AN137 -> 35.52 | AQ137: =IF((AH137/$AF137)>$AI$166,AQ138,$AF137) -> 300.00 | AR137: =IF((AH137/$AF137)>$AI$166,AR138,AF137) -> 300.00 | AS137: =($AG$163*((AR137/$AG$159)^(1/$AG$160))*(AF$172^(-$AG$161/$AG$160)))+($AG$164*$AF$172) -> 10,655.28 | AT137: =AS137/AR137 -> 35.52 | AU137: =IF((AI137/$AF137)>$AI$166,AU138,$AF137) -> 300.00 | AV137: =IF((AI137/$AF137)>$AI$166,AV138,AF137) -> 300.00 | AW137: =($AG$163*((AV137/$AG$159)^(1/$AG$160))*($AF$173^(-$AG$161/$AG$160)))+($AG$164*$AF$173) -> 13,349.72 | AX137: =AW137/AV137 -> 44.50 | AY137: =IF((AJ137/$AF137)>$AI$166,AY138,$AF137) -> 400.00 | AZ137: =IF((AJ137/$AF137)>$AI$166,AZ138,AF137) -> 400.00 | BA137: =($AG$163*((AZ137/$AG$159)^(1/$AG$160))*($AF$174^(-$AG$161/$AG$160)))+($AG$164*$AF$174) -> 16,876.98 | BB137: =BA137/AZ137 -> 42.19 | BC137: =IF((AK137/$AF137)>$AI$166,BC138,$AF137) -> 500.00 | BD137: =IF((AK137/$AF137)>$AI$166,BD138,AF137) -> 500.00 | BE137: =($AG$163*((BD137/$AG$159)^(1/$AG$160))*($AF$175^(-$AG$161/$AG$160)))+($AG$164*$AF$175) -> 20,412.41 | BF137: =BE137/BD137 -> 40.82 | BG137: =AL137/AF137 -> 24.49 | BI137: 0.10 | BJ137: 200.00 | BK137: 1,798.15 | BL137: 2,465.92 | BM137: 3,201.02 | BN137: 3,958.31 | BO137: 4,725.22 | BP137: 1,471.46 | BQ137: =IF((BK137/$BJ137)>$BM$166,BQ138,$BJ137) -> 200.00 | BR137: =IF((BK137/$BJ137)>$BM$166,BR138,BJ137) -> 200.00 | BS137: =($BK$163*((BR137/$BK$159)^(1/$BK$160))*($BJ$171^(-$BK$161/$BK$160)))+($BK$164*$BJ$171) -> 1,798.15 | BT137: =BS137/BR137 -> 8.99 | BU137: =IF((BL137/$BJ137)>$BM$166,BU138,$BJ137) -> 300.00 | BV137: =IF((BL137/$BJ137)>$BM$166,BV138,BJ137) -> 300.00 | BW137: =($BK$163*((BV137/$BK$159)^(1/$BK$160))*(BJ$172^(-$BK$161/$BK$160)))+($BK$164*$BJ$172) -> 2,620.55 | BX137: =BW137/BV137 -> 8.74 | BY137: =IF((BM137/$BJ137)>$BM$166,BY138,$BJ137) -> 400.00 | BZ137: =IF((BM137/$BJ137)>$BM$166,BZ138,BJ137) -> 400.00 | CA137: =($BK$163*((BZ137/$BK$159)^(1/$BK$160))*($BJ$173^(-$BK$161/$BK$160)))+($BK$164*$BJ$173) -> 3,435.24 | CB137: =CA137/BZ137 -> 8.59 | CC137: =IF((BN137/$BJ137)>$BM$166,CC138,$BJ137) -> 500.00 | CD137: =IF((BN137/$BJ137)>$BM$166,CD138,BJ137) -> 500.00 | CE137: =($BK$163*((CD137/$BK$159)^(1/$BK$160))*($BJ$174^(-$BK$161/$BK$160)))+($BK$164*$BJ$174) -> 4,245.13 | CF137: =CE137/CD137 -> 8.49 | CG137: =IF((BO137/$BJ137)>$BM$166,CG138,$BJ137) -> 500.00 | CH137: =IF((BO137/$BJ137)>$BM$166,CH138,BJ137) -> 500.00 | CI137: =($BK$163*((CH137/$BK$159)^(1/$BK$160))*($BJ$175^(-$BK$161/$BK$160)))+($BK$164*$BJ$175) -> 4,939.47 | CJ137: =CI137/CH137 -> 9.88 | CK137: =BP137/BJ137 -> 7.36
A138: 0.15 | B138: 300.00 | C138: 89,780.33 | D138: 112,938.38 | E138: 138,012.78 | F138: 164,014.08 | G138: 190,549.31 | H138: 70,612.51 | I138: 300.00 | J138: 300.00 | K138: 89,780.33 | L138: 299.27 | M138: 300.00 | N138: 300.00 | O138: 112,938.38 | P138: 376.46 | Q138: 300.00 | R138: 300.00 | S138: 138,012.78 | T138: 460.04 | U138: 300.00 | V138: 300.00 | W138: 164,014.08 | X138: 546.71 | Y138: 300.00 | Z138: 300.00 | AA138: 190,549.31 | AB138: 635.16 | AC138: 235.38 | AE138: 0.15 | AF138: 300.00 | AG138: 8,328.27 | AH138: 10,655.28 | AI138: 13,349.72 | AJ138: 16,191.13 | AK138: 19,106.02 | AL138: 7,348.47 | AM138: 300.00 | AN138: 300.00 | AO138: 8,328.27 | AP138: 27.76 | AQ138: 300.00 | AR138: 300.00 | AS138: 10,655.28 | AT138: 35.52 | AU138: 300.00 | AV138: 300.00 | AW138: 13,349.72 | AX138: 44.50 | AY138: 400.00 | AZ138: 400.00 | BA138: 16,876.98 | BB138: 42.19 | BC138: 500.00 | BD138: 500.00 | BE138: 20,412.41 | BF138: 40.82 | BG138: 24.49 | BI138: 0.15 | BJ138: 300.00 | BK138: 2,093.99 | BL138: 2,620.55 | BM138: 3,298.61 | BN138: 4,026.60 | BO138: 4,776.23 | BP138: 2,010.03 | BQ138: 300.00 | BR138: 300.00 | BS138: 2,093.99 | BT138: 6.98 | BU138: 300.00 | BV138: 300.00 | BW138: 2,620.55 | BX138: 8.74 | BY138: 400.00 | BZ138: 400.00 | CA138: 3,435.24 | CB138: 8.59 | CC138: 500.00 | CD138: 500.00 | CE138: 4,245.13 | CF138: 8.49 | CG138: 500.00 | CH138: 500.00 | CI138: 4,939.47 | CJ138: 9.88 | CK138: 6.70
A139: 0.20 | B139: 400.00 | C139: 115,795.89 | D139: 135,058.97 | E139: 157,728.89 | F139: 182,046.63 | G139: 207,313.58 | H139: 106,503.90 | I139: 400.00 | J139: 400.00 | K139: 115,795.89 | L139: 289.49 | M139: 400.00 | N139: 400.00 | O139: 135,058.97 | P139: 337.65 | Q139: 400.00 | R139: 400.00 | S139: 157,728.89 | T139: 394.32 | U139: 400.00 | V139: 400.00 | W139: 182,046.63 | X139: 455.12 | Y139: 400.00 | Z139: 400.00 | AA139: 207,313.58 | AB139: 518.28 | AC139: 266.26 | AE139: 0.20 | AF139: 400.00 | AG139: 10,042.91 | AH139: 11,798.38 | AI139: 14,207.04 | AJ139: 16,876.98 | AK139: 19,677.57 | AL139: 9,797.96 | AM139: 400.00 | AN139: 400.00 | AO139: 10,042.91 | AP139: 25.11 | AQ139: 400.00 | AR139: 400.00 | AS139: 11,798.38 | AT139: 29.50 | AU139: 400.00 | AV139: 400.00 | AW139: 14,207.04 | AX139: 35.52 | AY139: 400.00 | AZ139: 400.00 | BA139: 16,876.98 | BB139: 42.19 | BC139: 500.00 | BD139: 500.00 | BE139: 20,412.41 | BF139: 40.82 | BG139: 24.49 | BI139: 0.20 | BJ139: 400.00 | BK139: 2,508.17 | BL139: 2,837.05 | BM139: 3,435.24 | BN139: 4,122.21 | BO139: 4,847.65 | BP139: 2,507.90 | BQ139: 400.00 | BR139: 400.00 | BS139: 2,508.17 | BT139: 6.27 | BU139: 400.00 | BV139: 400.00 | BW139: 2,837.05 | BX139: 7.09 | BY139: 400.00 | BZ139: 400.00 | CA139: 3,435.24 | CB139: 8.59 | CC139: 500.00 | CD139: 500.00 | CE139: 4,245.13 | CF139: 8.49 | CG139: 500.00 | CH139: 500.00 | CI139: 4,939.47 | CJ139: 9.88 | CK139: 6.27
A140: 0.25 | B140: 500.00 | C140: 149,244.48 | D140: 163,499.74 | E140: 183,078.18 | F140: 205,231.35 | G140: 228,867.65 | H140: 146,490.14 | I140: 500.00 | J140: 500.00 | K140: 149,244.48 | L140: 298.49 | M140: 500.00 | N140: 500.00 | O140: 163,499.74 | P140: 327.00 | Q140: 500.00 | R140: 500.00 | S140: 183,078.18 | T140: 366.16 | U140: 500.00 | V140: 500.00 | W140: 205,231.35 | X140: 410.46 | Y140: 500.00 | Z140: 500.00 | AA140: 228,867.65 | AB140: 457.74 | AC140: 292.98 | AE140: 0.25 | AF140: 500.00 | AG140: 12,247.45 | AH140: 13,268.07 | AI140: 15,309.31 | AJ140: 17,758.80 | AK140: 20,412.41 | AL140: 12,247.45 | AM140: 500.00 | AN140: 500.00 | AO140: 12,247.45 | AP140: 24.49 | AQ140: 500.00 | AR140: 500.00 | AS140: 13,268.07 | AT140: 26.54 | AU140: 500.00 | AV140: 500.00 | AW140: 15,309.31 | AX140: 30.62 | AY140: 500.00 | AZ140: 500.00 | BA140: 17,758.80 | BB140: 35.52 | BC140: 500.00 | BD140: 500.00 | BE140: 20,412.41 | BF140: 40.82 | BG140: 24.49 | BI140: 0.25 | BJ140: 500.00 | BK140: 3,040.69 | BL140: 3,115.40 | BM140: 3,610.90 | BN140: 4,245.13 | BO140: 4,939.47 | BP140: 2,977.53 | BQ140: 500.00 | BR140: 500.00 | BS140: 3,040.69 | BT140: 6.08 | BU140: 500.00 | BV140: 500.00 | BW140: 3,115.40 | BX140: 6.23 | BY140: 500.00 | BZ140: 500.00 | CA140: 3,610.90 | CB140: 7.22 | CC140: 500.00 | CD140: 500.00 | CE140: 4,245.13 | CF140: 8.49 | CG140: 500.00 | CH140: 500.00 | CI140: 4,939.47 | CJ140: 9.88 | CK140: 5.96
A141: 0.30 | B141: 600.00 | C141: 190,126.08 | D141: 198,260.67 | E141: 214,060.64 | F141: 233,568.22 | G141: 255,211.51 | H141: 190,074.77 | I141: 600.00 | J141: 600.00 | K141: 190,126.08 | L141: 316.88 | M141: 600.00 | N141: 600.00 | O141: 198,260.67 | P141: 330.43 | Q141: 600.00 | R141: 600.00 | S141: 214,060.64 | T141: 356.77 | U141: 600.00 | V141: 600.00 | W141: 233,568.22 | X141: 389.28 | Y141: 600.00 | Z141: 600.00 | AA141: 255,211.51 | AB141: 425.35 | AC141: 316.79 | AE141: 0.30 | AF141: 600.00 | AG141: 14,941.89 | AH141: 15,064.36 | AI141: 16,656.53 | AJ141: 18,836.58 | AK141: 21,310.56 | AL141: 14,696.94 | AM141: 600.00 | AN141: 600.00 | AO141: 14,941.89 | AP141: 24.90 | AQ141: 600.00 | AR141: 600.00 | AS141: 15,064.36 | AT141: 25.11 | AU141: 600.00 | AV141: 600.00 | AW141: 16,656.53 | AX141: 27.76 | AY141: 600.00 | AZ141: 600.00 | BA141: 18,836.58 | BB141: 31.39 | BC141: 600.00 | BD141: 600.00 | BE141: 21,310.56 | BF141: 35.52 | BG141: 24.49 | BI141: 0.30 | BJ141: 600.00 | BK141: 3,691.54 | BL141: 3,455.60 | BM141: 3,825.60 | BN141: 4,395.37 | BO141: 5,051.69 | BP141: 3,425.82 | BQ141: 600.00 | BR141: 600.00 | BS141: 3,691.54 | BT141: 6.15 | BU141: 600.00 | BV141: 600.00 | BW141: 3,455.60 | BX141: 5.76 | BY141: 600.00 | BZ141: 600.00 | CA141: 3,825.60 | CB141: 6.38 | CC141: 600.00 | CD141: 600.00 | CE141: 4,395.37 | CF141: 7.33 | CG141: 600.00 | CH141: 600.00 | CI141: 5,051.69 | CJ141: 8.42 | CK141: 5.71
A142: 0.35 | B142: 700.00 | C142: 238,440.70 | D142: 239,341.77 | E142: 250,676.27 | F142: 267,057.25 | G142: 286,345.16 | H142: 236,898.73 | I142: 700.00 | J142: 700.00 | K142: 238,440.70 | L142: 340.63 | M142: 700.00 | N142: 700.00 | O142: 239,341.77 | P142: 341.92 | Q142: 700.00 | R142: 700.00 | S142: 250,676.27 | T142: 358.11 | U142: 700.00 | V142: 700.00 | W142: 267,057.25 | X142: 381.51 | Y142: 700.00 | Z142: 700.00 | AA142: 286,345.16 | AB142: 409.06 | AC142: 338.43 | AE142: 0.35 | AF142: 700.00 | AG142: 18,126.22 | AH142: 17,187.25 | AI142: 18,248.70 | AJ142: 20,110.31 | AK142: 22,372.01 | AL142: 17,146.43 | AM142: 700.00 | AN142: 700.00 | AO142: 18,126.22 | AP142: 25.89 | AQ142: 700.00 | AR142: 700.00 | AS142: 17,187.25 | AT142: 24.55 | AU142: 700.00 | AV142: 700.00 | AW142: 18,248.70 | AX142: 26.07 | AY142: 700.00 | AZ142: 700.00 | BA142: 20,110.31 | BB142: 28.73 | BC142: 700.00 | BD142: 700.00 | BE142: 22,372.01 | BF142: 31.96 | BG142: 24.49 | BI142: 0.35 | BJ142: 700.00 | BK142: 4,460.74 | BL142: 3,857.66 | BM142: 4,079.34 | BN142: 4,572.92 | BO142: 5,184.32 | BP142: 3,857.11 | BQ142: 700.00 | BR142: 700.00 | BS142: 4,460.74 | BT142: 6.37 | BU142: 700.00 | BV142: 700.00 | BW142: 3,857.66 | BX142: 5.51 | BY142: 700.00 | BZ142: 700.00 | CA142: 4,079.34 | CB142: 5.83 | CC142: 700.00 | CD142: 700.00 | CE142: 4,572.92 | CF142: 6.53 | CG142: 700.00 | CH142: 700.00 | CI142: 5,184.32 | CJ142: 7.41 | CK142: 5.51
A143: 0.40 | B143: 800.00 | C143: 294,188.34 | D143: 286,743.04 | E143: 292,925.08 | F143: 305,698.44 | G143: 322,268.60 | H143: 286,687.25 | I143: 800.00 | J143: 800.00 | K143: 294,188.34 | L143: 367.74 | M143: 800.00 | N143: 800.00 | O143: 286,743.04 | P143: 358.43 | Q143: 800.00 | R143: 800.00 | S143: 292,925.08 | T143: 366.16 | U143: 800.00 | V143: 800.00 | W143: 305,698.44 | X143: 382.12 | Y143: 800.00 | Z143: 800.00 | AA143: 322,268.60 | AB143: 402.84 | AC143: 358.36 | AE143: 0.40 | AF143: 800.00 | AG143: 21,800.46 | AH143: 19,636.74 | AI143: 20,085.82 | AJ143: 21,580.00 | AK143: 23,596.75 | AL143: 19,595.92 | AM143: 800.00 | AN143: 800.00 | AO143: 21,800.46 | AP143: 27.25 | AQ143: 800.00 | AR143: 800.00 | AS143: 19,636.74 | AT143: 24.55 | AU143: 800.00 | AV143: 800.00 | AW143: 20,085.82 | AX143: 25.11 | AY143: 800.00 | AZ143: 800.00 | BA143: 21,580.00 | BB143: 26.98 | BC143: 800.00 | BD143: 800.00 | BE143: 23,596.75 | BF143: 29.50 | BG143: 24.49 | BI143: 0.40 | BJ143: 800.00 | BK143: 5,348.27 | BL143: 4,321.57 | BM143: 4,372.12 | BN143: 4,777.79 | BO143: 5,337.36 | BP143: 4,274.36 | BQ143: 800.00 | BR143: 800.00 | BS143: 5,348.27 | BT143: 6.69 | BU143: 800.00 | BV143: 800.00 | BW143: 4,321.57 | BX143: 5.40 | BY143: 800.00 | BZ143: 800.00 | CA143: 4,372.12 | CB143: 5.47 | CC143: 800.00 | CD143: 800.00 | CE143: 4,777.79 | CF143: 5.97 | CG143: 800.00 | CH143: 800.00 | CI143: 5,337.36 | CJ143: 6.67 | CK143: 5.34
A144: 0.45 | B144: 900.00 | C144: 357,369.00 | D144: 340,464.47 | E144: 340,807.07 | F144: 349,491.78 | G144: 362,981.84 | H144: 339,221.53 | I144: 900.00 | J144: 900.00 | K144: 357,369.00 | L144: 397.08 | M144: 900.00 | N144: 900.00 | O144: 340,464.47 | P144: 378.29 | Q144: 900.00 | R144: 900.00 | S144: 340,807.07 | T144: 378.67 | U144: 900.00 | V144: 900.00 | W144: 349,491.78 | X144: 388.32 | Y144: 900.00 | Z144: 900.00 | AA144: 362,981.84 | AB144: 403.31 | AC144: 376.91 | AE144: 0.45 | AF144: 900.00 | AG144: 25,964.59 | AH144: 22,412.83 | AI144: 22,167.88 | AJ144: 23,245.66 | AK144: 24,984.80 | AL144: 22,045.41 | AM144: 900.00 | AN144: 900.00 | AO144: 25,964.59 | AP144: 28.85 | AQ144: 900.00 | AR144: 900.00 | AS144: 22,412.83 | AT144: 24.90 | AU144: 900.00 | AV144: 900.00 | AW144: 22,167.88 | AX144: 24.63 | AY144: 900.00 | AZ144: 900.00 | BA144: 23,245.66 | BB144: 25.83 | BC144: 900.00 | BD144: 900.00 | BE144: 24,984.80 | BF144: 27.76 | BG144: 24.49 | BI144: 0.45 | BJ144: 900.00 | BK144: 6,354.13 | BL144: 4,847.34 | BM144: 4,703.93 | BN144: 5,009.98 | BO144: 5,510.80 | BP144: 4,679.71 | BQ144: 900.00 | BR144: 900.00 | BS144: 6,354.13 | BT144: 7.06 | BU144: 900.00 | BV144: 900.00 | BW144: 4,847.34 | BX144: 5.39 | BY144: 900.00 | BZ144: 900.00 | CA144: 4,703.93 | CB144: 5.23 | CC144: 900.00 | CD144: 900.00 | CE144: 5,009.98 | CF144: 5.57 | CG144: 900.00 | CH144: 900.00 | CI144: 5,510.80 | CJ144: 6.12 | CK144: 5.20
A145: 0.50 | B145: 1,000.00 | C145: 427,982.67 | D145: 400,506.08 | E145: 394,322.22 | F145: 398,437.29 | G145: 408,484.87 | H145: 394,322.22 | I145: 1,000.00 | J145: 1,000.00 | K145: 427,982.67 | L145: 427.98 | M145: 1,000.00 | N145: 1,000.00 | O145: 400,506.08 | P145: 400.51 | Q145: 1,000.00 | R145: 1,000.00 | S145: 394,322.22 | T145: 394.32 | U145: 1,000.00 | V145: 1,000.00 | W145: 398,437.29 | X145: 398.44 | Y145: 1,000.00 | Z145: 1,000.00 | AA145: 408,484.87 | AB145: 408.48 | AC145: 394.32 | AE145: 0.50 | AF145: 1,000.00 | AG145: 30,618.62 | AH145: 25,515.52 | AI145: 24,494.90 | AJ145: 25,107.27 | AK145: 26,536.14 | AL145: 24,494.90 | AM145: 1,000.00 | AN145: 1,000.00 | AO145: 30,618.62 | AP145: 30.62 | AQ145: 1,000.00 | AR145: 1,000.00 | AS145: 25,515.52 | AT145: 25.52 | AU145: 1,000.00 | AV145: 1,000.00 | AW145: 24,494.90 | AX145: 24.49 | AY145: 1,000.00 | AZ145: 1,000.00 | BA145: 25,107.27 | BB145: 25.11 | BC145: 1,000.00 | BD145: 1,000.00 | BE145: 26,536.14 | BF145: 26.54 | BG145: 24.49 | BI145: 0.50 | BJ145: 1,000.00 | BK145: 7,478.34 | BL145: 5,434.96 | BM145: 5,074.78 | BN145: 5,269.48 | BO145: 5,704.64 | BP145: 5,074.78 | BQ145: 1,000.00 | BR145: 1,000.00 | BS145: 7,478.34 | BT145: 7.48 | BU145: 1,000.00 | BV145: 1,000.00 | BW145: 5,434.96 | BX145: 5.43 | BY145: 1,000.00 | BZ145: 1,000.00 | CA145: 5,074.78 | CB145: 5.07 | CC145: 1,000.00 | CD145: 1,000.00 | CE145: 5,269.48 | CF145: 5.27 | CG145: 1,000.00 | CH145: 1,000.00 | CI145: 5,704.64 | CJ145: 5.70 | CK145: 5.07
A146: 0.55 | B146: 1,100.00 | C146: 506,029.37 | D146: 466,867.86 | E146: 453,470.56 | F146: 452,534.95 | G146: 458,777.69 | H146: 451,838.95 | I146: 1,100.00 | J146: 1,100.00 | K146: 506,029.37 | L146: 460.03 | M146: 1,100.00 | N146: 1,100.00 | O146: 466,867.86 | P146: 424.43 | Q146: 1,100.00 | R146: 1,100.00 | S146: 453,470.56 | T146: 412.25 | U146: 1,100.00 | V146: 1,100.00 | W146: 452,534.95 | X146: 411.40 | Y146: 1,100.00 | Z146: 1,100.00 | AA146: 458,777.69 | AB146: 417.07 | AC146: 410.76 | AE146: 0.55 | AF146: 1,100.00 | AG146: 35,762.55 | AH146: 28,944.80 | AI146: 27,066.86 | AJ146: 27,164.84 | AK146: 28,250.78 | AL146: 26,944.39 | AM146: 1,100.00 | AN146: 1,100.00 | AO146: 35,762.55 | AP146: 32.51 | AQ146: 1,100.00 | AR146: 1,100.00 | AS146: 28,944.80 | AT146: 26.31 | AU146: 1,100.00 | AV146: 1,100.00 | AW146: 27,066.86 | AX146: 24.61 | AY146: 1,100.00 | AZ146: 1,100.00 | BA146: 27,164.84 | BB146: 24.70 | BC146: 1,100.00 | BD146: 1,100.00 | BE146: 28,250.78 | BF146: 25.68 | BG146: 24.49 | BI146: 0.55 | BJ146: 1,100.00 | BK146: 8,720.88 | BL146: 6,084.44 | BM146: 5,484.67 | BN146: 5,556.30 | BO146: 5,918.89 | BP146: 5,460.82 | BQ146: 1,100.00 | BR146: 1,100.00 | BS146: 8,720.88 | BT146: 7.93 | BU146: 1,100.00 | BV146: 1,100.00 | BW146: 6,084.44 | BX146: 5.53 | BY146: 1,100.00 | BZ146: 1,100.00 | CA146: 5,484.67 | CB146: 4.99 | CC146: 1,100.00 | CD146: 1,100.00 | CE146: 5,556.30 | CF146: 5.05 | CG146: 1,100.00 | CH146: 1,100.00 | CI146: 5,918.89 | CJ146: 5.38 | CK146: 4.96
A147: 0.60 | B147: 1,200.00 | C147: 591,509.08 | D147: 539,549.81 | E147: 518,252.07 | F147: 511,784.77 | G147: 513,860.31 | H147: 511,643.33 | I147: 1,200.00 | J147: 1,200.00 | K147: 591,509.08 | L147: 492.92 | M147: 1,200.00 | N147: 1,200.00 | O147: 539,549.81 | P147: 449.62 | Q147: 1,200.00 | R147: 1,200.00 | S147: 518,252.07 | T147: 431.88 | U147: 1,200.00 | V147: 1,200.00 | W147: 511,784.77 | X147: 426.49 | Y147: 1,200.00 | Z147: 1,200.00 | AA147: 513,860.31 | AB147: 428.22 | AC147: 426.37 | AE147: 0.60 | AF147: 1,200.00 | AG147: 41,396.38 | AH147: 32,700.69 | AI147: 29,883.77 | AJ147: 29,418.37 | AK147: 30,128.72 | AL147: 29,393.88 | AM147: 1,200.00 | AN147: 1,200.00 | AO147: 41,396.38 | AP147: 34.50 | AQ147: 1,200.00 | AR147: 1,200.00 | AS147: 32,700.69 | AT147: 27.25 | AU147: 1,200.00 | AV147: 1,200.00 | AW147: 29,883.77 | AX147: 24.90 | AY147: 1,200.00 | AZ147: 1,200.00 | BA147: 29,418.37 | BB147: 24.52 | BC147: 1,200.00 | BD147: 1,200.00 | BE147: 30,128.72 | BF147: 25.11 | BG147: 24.49 | BI147: 0.60 | BJ147: 1,200.00 | BK147: 10,081.76 | BL147: 6,795.78 | BM147: 5,933.59 | BN147: 5,870.43 | BO147: 6,153.54 | BP147: 5,838.83 | BQ147: 1,200.00 | BR147: 1,200.00 | BS147: 10,081.76 | BT147: 8.40 | BU147: 1,200.00 | BV147: 1,200.00 | BW147: 6,795.78 | BX147: 5.66 | BY147: 1,200.00 | BZ147: 1,200.00 | CA147: 5,933.59 | CB147: 4.94 | CC147: 1,200.00 | CD147: 1,200.00 | CE147: 5,870.43 | CF147: 4.89 | CG147: 1,200.00 | CH147: 1,200.00 | CI147: 6,153.54 | CJ147: 5.13 | CK147: 4.87
A148: 0.65 | B148: 1,300.00 | C148: 684,421.81 | D148: 618,551.92 | E148: 588,666.75 | F148: 576,186.75 | G148: 573,732.72 | H148: 573,624.21 | I148: 1,300.00 | J148: 1,300.00 | K148: 684,421.81 | L148: 526.48 | M148: 1,300.00 | N148: 1,300.00 | O148: 618,551.92 | P148: 475.81 | Q148: 1,300.00 | R148: 1,300.00 | S148: 588,666.75 | T148: 452.82 | U148: 1,300.00 | V148: 1,300.00 | W148: 576,186.75 | X148: 443.22 | Y148: 1,300.00 | Z148: 1,300.00 | AA148: 573,732.72 | AB148: 441.33 | AC148: 441.25 | AE148: 0.65 | AF148: 1,300.00 | AG148: 47,520.10 | AH148: 36,783.17 | AI148: 32,945.64 | AJ148: 31,867.86 | AK148: 32,169.97 | AL148: 31,843.37 | AM148: 1,300.00 | AN148: 1,300.00 | AO148: 47,520.10 | AP148: 36.55 | AQ148: 1,300.00 | AR148: 1,300.00 | AS148: 36,783.17 | AT148: 28.29 | AU148: 1,300.00 | AV148: 1,300.00 | AW148: 32,945.64 | AX148: 25.34 | AY148: 1,300.00 | AZ148: 1,300.00 | BA148: 31,867.86 | BB148: 24.51 | BC148: 1,300.00 | BD148: 1,300.00 | BE148: 32,169.97 | BF148: 24.75 | BG148: 24.49 | BI148: 0.65 | BJ148: 1,300.00 | BK148: 11,560.98 | BL148: 7,568.97 | BM148: 6,421.55 | BN148: 6,211.88 | BO148: 6,408.60 | BP148: 6,209.63 | BQ148: 1,300.00 | BR148: 1,300.00 | BS148: 11,560.98 | BT148: 8.89 | BU148: 1,300.00 | BV148: 1,300.00 | BW148: 7,568.97 | BX148: 5.82 | BY148: 1,300.00 | BZ148: 1,300.00 | CA148: 6,421.55 | CB148: 4.94 | CC148: 1,300.00 | CD148: 1,300.00 | CE148: 6,211.88 | CF148: 4.78 | CG148: 1,300.00 | CH148: 1,300.00 | CI148: 6,408.60 | CJ148: 4.93 | CK148: 4.78
A149: 0.70 | B149: 1,400.00 | C149: 784,767.56 | D149: 703,874.21 | E149: 664,714.61 | F149: 645,740.89 | G149: 638,394.92 | H149: 637,684.10 | I149: 1,400.00 | J149: 1,400.00 | K149: 784,767.56 | L149: 560.55 | M149: 1,400.00 | N149: 1,400.00 | O149: 703,874.21 | P149: 502.77 | Q149: 1,400.00 | R149: 1,400.00 | S149: 664,714.61 | T149: 474.80 | U149: 1,400.00 | V149: 1,400.00 | W149: 645,740.89 | X149: 461.24 | Y149: 1,400.00 | Z149: 1,400.00 | AA149: 638,394.92 | AB149: 456.00 | AC149: 455.49 | AE149: 0.70 | AF149: 1,400.00 | AG149: 54,133.72 | AH149: 41,192.25 | AI149: 36,252.45 | AJ149: 34,513.31 | AK149: 34,374.51 | AL149: 34,292.86 | AM149: 1,400.00 | AN149: 1,400.00 | AO149: 54,133.72 | AP149: 38.67 | AQ149: 1,400.00 | AR149: 1,400.00 | AS149: 41,192.25 | AT149: 29.42 | AU149: 1,400.00 | AV149: 1,400.00 | AW149: 36,252.45 | AX149: 25.89 | AY149: 1,400.00 | AZ149: 1,400.00 | BA149: 34,513.31 | BB149: 24.65 | BC149: 1,400.00 | BD149: 1,400.00 | BE149: 34,374.51 | BF149: 24.55 | BG149: 24.49 | BI149: 0.70 | BJ149: 1,400.00 | BK149: 13,158.53 | BL149: 8,404.01 | BM149: 6,948.54 | BN149: 6,580.65 | BO149: 6,684.06 | BP149: 6,573.90 | BQ149: 1,400.00 | BR149: 1,400.00 | BS149: 13,158.53 | BT149: 9.40 | BU149: 1,400.00 | BV149: 1,400.00 | BW149: 8,404.01 | BX149: 6.00 | BY149: 1,400.00 | BZ149: 1,400.00 | CA149: 6,948.54 | CB149: 4.96 | CC149: 1,400.00 | CD149: 1,400.00 | CE149: 6,580.65 | CF149: 4.70 | CG149: 1,400.00 | CH149: 1,400.00 | CI149: 6,684.06 | CJ149: 4.77 | CK149: 4.70
A150: 0.75 | B150: 1,500.00 | C150: 892,546.33 | D150: 795,516.66 | E150: 746,395.64 | F150: 720,447.19 | G150: 707,846.91 | H150: 703,736.69 | I150: 1,500.00 | J150: 1,500.00 | K150: 892,546.33 | L150: 595.03 | M150: 1,500.00 | N150: 1,500.00 | O150: 795,516.66 | P150: 530.34 | Q150: 1,500.00 | R150: 1,500.00 | S150: 746,395.64 | T150: 497.60 | U150: 1,500.00 | V150: 1,500.00 | W150: 720,447.19 | X150: 480.30 | Y150: 1,500.00 | Z150: 1,500.00 | AA150: 707,846.91 | AB150: 471.90 | AC150: 469.16 | AE150: 0.75 | AF150: 1,500.00 | AG150: 61,237.24 | AH150: 45,927.93 | AI150: 39,804.21 | AJ150: 37,354.72 | AK150: 36,742.35 | AL150: 36,742.35 | AM150: 1,500.00 | AN150: 1,500.00 | AO150: 61,237.24 | AP150: 40.82 | AQ150: 1,500.00 | AR150: 1,500.00 | AS150: 45,927.93 | AT150: 30.62 | AU150: 1,500.00 | AV150: 1,500.00 | AW150: 39,804.21 | AX150: 26.54 | AY150: 1,500.00 | AZ150: 1,500.00 | BA150: 37,354.72 | BB150: 24.90 | BC150: 1,500.00 | BD150: 1,500.00 | BE150: 36,742.35 | BF150: 24.49 | BG150: 24.49 | BI150: 0.75 | BJ150: 1,500.00 | BK150: 14,874.42 | BL150: 9,300.91 | BM150: 7,514.58 | BN150: 6,976.73 | BO150: 6,979.93 | BP150: 6,932.22 | BQ150: 1,500.00 | BR150: 1,500.00 | BS150: 14,874.42 | BT150: 9.92 | BU150: 1,500.00 | BV150: 1,500.00 | BW150: 9,300.91 | BX150: 6.20 | BY150: 1,500.00 | BZ150: 1,500.00 | CA150: 7,514.58 | CB150: 5.01 | CC150: 1,500.00 | CD150: 1,500.00 | CE150: 6,976.73 | CF150: 4.65 | CG150: 1,500.00 | CH150: 1,500.00 | CI150: 6,979.93 | CJ150: 4.65 | CK150: 4.62
A151: 0.80 | B151: 1,600.00 | C151: 1,007,758.11 | D151: 893,479.29 | E151: 833,709.85 | F151: 800,305.65 | G151: 782,088.70 | H151: 771,704.85 | I151: 1,600.00 | J151: 1,600.00 | K151: 1,007,758.11 | L151: 629.85 | M151: 1,600.00 | N151: 1,600.00 | O151: 893,479.29 | P151: 558.42 | Q151: 1,600.00 | R151: 1,600.00 | S151: 833,709.85 | T151: 521.07 | U151: 1,600.00 | V151: 1,600.00 | W151: 800,305.65 | X151: 500.19 | Y151: 1,600.00 | Z151: 1,600.00 | AA151: 782,088.70 | AB151: 488.81 | AC151: 482.32 | AE151: 0.80 | AF151: 1,600.00 | AG151: 68,830.66 | AH151: 50,990.21 | AI151: 43,600.92 | AJ151: 40,392.09 | AK151: 39,273.49 | AL151: 39,191.84 | AM151: 1,600.00 | AN151: 1,600.00 | AO151: 68,830.66 | AP151: 43.02 | AQ151: 1,600.00 | AR151: 1,600.00 | AS151: 50,990.21 | AT151: 31.87 | AU151: 1,600.00 | AV151: 1,600.00 | AW151: 43,600.92 | AX151: 27.25 | AY151: 1,600.00 | AZ151: 1,600.00 | BA151: 40,392.09 | BB151: 25.25 | BC151: 1,600.00 | BD151: 1,600.00 | BE151: 39,273.49 | BF151: 24.55 | BG151: 24.49 | BI151: 0.80 | BJ151: 1,600.00 | BK151: 16,708.65 | BL151: 10,259.66 | BM151: 8,119.65 | BN151: 7,400.13 | BO151: 7,296.20 | BP151: 7,285.05 | BQ151: 0 | BR151: 1,500.00 | BS151: 14,874.42 | BT151: 9.92 | BU151: 1,600.00 | BV151: 1,600.00 | BW151: 10,259.66 | BX151: 6.41 | BY151: 1,600.00 | BZ151: 1,600.00 | CA151: 8,119.65 | CB151: 5.07 | CC151: 1,600.00 | CD151: 1,600.00 | CE151: 7,400.13 | CF151: 4.63 | CG151: 1,600.00 | CH151: 1,600.00 | CI151: 7,296.20 | CJ151: 4.56 | CK151: 4.55
A152: 0.85 | B152: 1,700.00 | C152: 1,130,402.92 | D152: 997,762.08 | E152: 926,657.23 | F152: 885,316.26 | G152: 861,120.27 | H152: 841,519.14 | I152: 1,700.00 | J152: 1,700.00 | K152: 1,130,402.92 | L152: 664.94 | M152: 1,700.00 | N152: 1,700.00 | O152: 997,762.08 | P152: 586.92 | Q152: 1,700.00 | R152: 1,700.00 | S152: 926,657.23 | T152: 545.09 | U152: 1,700.00 | V152: 1,700.00 | W152: 885,316.26 | X152: 520.77 | Y152: 1,700.00 | Z152: 1,700.00 | AA152: 861,120.27 | AB152: 506.54 | AC152: 495.01 | AE152: 0.85 | AF152: 1,700.00 | AG152: 76,913.98 | AH152: 56,379.09 | AI152: 47,642.58 | AJ152: 43,625.41 | AK152: 41,967.92 | AL152: 41,641.33 | AM152: 1,700.00 | AN152: 1,700.00 | AO152: 76,913.98 | AP152: 45.24 | AQ152: 1,700.00 | AR152: 1,700.00 | AS152: 56,379.09 | AT152: 33.16 | AU152: 1,700.00 | AV152: 1,700.00 | AW152: 47,642.58 | AX152: 28.03 | AY152: 1,700.00 | AZ152: 1,700.00 | BA152: 43,625.41 | BB152: 25.66 | BC152: 1,700.00 | BD152: 1,700.00 | BE152: 41,967.92 | BF152: 24.69 | BG152: 24.49 | BI152: 0.85 | BJ152: 1,700.00 | BK152: 18,661.22 | BL152: 11,280.27 | BM152: 8,763.75 | BN152: 7,850.85 | BO152: 7,632.88 | BP152: 7,632.83 | BQ152: 0 | BR152: 1,500.00 | BS152: 14,874.42 | BT152: 9.92 | BU152: 1,700.00 | BV152: 1,700.00 | BW152: 11,280.27 | BX152: 6.64 | BY152: 1,700.00 | BZ152: 1,700.00 | CA152: 8,763.75 | CB152: 5.16 | CC152: 1,700.00 | CD152: 1,700.00 | CE152: 7,850.85 | CF152: 4.62 | CG152: 1,700.00 | CH152: 1,700.00 | CI152: 7,632.88 | CJ152: 4.49 | CK152: 4.49
A153: 0.90 | B153: 1,800.00 | C153: 1,260,480.74 | D153: 1,108,365.04 | E153: 1,025,237.78 | F153: 975,479.03 | G153: 944,941.65 | H153: 913,116.65 | I153: 1,800.00 | J153: 1,800.00 | K153: 1,260,480.74 | L153: 700.27 | M153: 1,800.00 | N153: 1,800.00 | O153: 1,108,365.04 | P153: 615.76 | Q153: 1,800.00 | R153: 1,800.00 | S153: 1,025,237.78 | T153: 569.58 | U153: 1,800.00 | V153: 1,800.00 | W153: 975,479.03 | X153: 541.93 | Y153: 1,800.00 | Z153: 1,800.00 | AA153: 944,941.65 | AB153: 524.97 | AC153: 507.29 | AE153: 0.90 | AF153: 1,800.00 | AG153: 85,487.19 | AH153: 62,094.56 | AI153: 51,929.18 | AJ153: 47,054.70 | AK153: 44,825.66 | AL153: 44,090.82 | AM153: 1,800.00 | AN153: 1,800.00 | AO153: 85,487.19 | AP153: 47.49 | AQ153: 1,800.00 | AR153: 1,800.00 | AS153: 62,094.56 | AT153: 34.50 | AU153: 1,800.00 | AV153: 1,800.00 | AW153: 51,929.18 | AX153: 28.85 | AY153: 1,800.00 | AZ153: 1,800.00 | BA153: 47,054.70 | BB153: 26.14 | BC153: 1,800.00 | BD153: 1,800.00 | BE153: 44,825.66 | BF153: 24.90 | BG153: 24.49 | BI153: 0.90 | BJ153: 1,800.00 | BK153: 20,732.12 | BL153: 12,362.74 | BM153: 9,446.90 | BN153: 8,328.88 | BO153: 7,989.96 | BP153: 7,975.92 | BQ153: 0 | BR153: 1,500.00 | BS153: 14,874.42 | BT153: 9.92 | BU153: 1,800.00 | BV153: 1,800.00 | BW153: 12,362.74 | BX153: 6.87 | BY153: 1,800.00 | BZ153: 1,800.00 | CA153: 9,446.90 | CB153: 5.25 | CC153: 1,800.00 | CD153: 1,800.00 | CE153: 8,328.88 | CF153: 4.63 | CG153: 1,800.00 | CH153: 1,800.00 | CI153: 7,989.96 | CJ153: 4.44 | CK153: 4.43
A154: 0.95 | B154: 1,900.00 | C154: 1,397,991.58 | D154: 1,225,288.17 | E154: 1,129,451.51 | F154: 1,070,793.96 | G154: 1,033,552.81 | H154: 986,440.02 | I154: 1,900.00 | J154: 1,900.00 | K154: 1,397,991.58 | L154: 735.79 | M154: 1,900.00 | N154: 1,900.00 | O154: 1,225,288.17 | P154: 644.89 | Q154: 1,900.00 | R154: 1,900.00 | S154: 1,129,451.51 | T154: 594.45 | U154: 1,900.00 | V154: 1,900.00 | W154: 1,070,793.96 | X154: 563.58 | Y154: 1,900.00 | Z154: 1,900.00 | AA154: 1,033,552.81 | AB154: 543.98 | AC154: 519.18 | AE154: 0.95 | AF154: 1,900.00 | AG154: 94,550.30 | AH154: 68,136.64 | AI154: 56,460.74 | AJ154: 50,679.94 | AK154: 47,846.70 | AL154: 46,540.31 | AM154: 0 | AN154: 1,800.00 | AO154: 85,487.19 | AP154: 47.49 | AQ154: 1,900.00 | AR154: 1,900.00 | AS154: 68,136.64 | AT154: 35.86 | AU154: 1,900.00 | AV154: 1,900.00 | AW154: 56,460.74 | AX154: 29.72 | AY154: 1,900.00 | AZ154: 1,900.00 | BA154: 50,679.94 | BB154: 26.67 | BC154: 1,900.00 | BD154: 1,900.00 | BE154: 47,846.70 | BF154: 25.18 | BG154: 24.49 | BI154: 0.95 | BJ154: 1,900.00 | BK154: 22,921.36 | BL154: 13,507.06 | BM154: 10,169.08 | BN154: 8,834.22 | BO154: 8,367.44 | BP154: 8,314.63 | BQ154: 0 | BR154: 1,500.00 | BS154: 14,874.42 | BT154: 9.92 | BU154: 1,900.00 | BV154: 1,900.00 | BW154: 13,507.06 | BX154: 7.11 | BY154: 1,900.00 | BZ154: 1,900.00 | CA154: 10,169.08 | CB154: 5.35 | CC154: 1,900.00 | CD154: 1,900.00 | CE154: 8,834.22 | CF154: 4.65 | CG154: 1,900.00 | CH154: 1,900.00 | CI154: 8,367.44 | CJ154: 4.40 | CK154: 4.38
A155: 1.00 | B155: 2,000.00 | C155: 1,542,935.44 | D155: 1,348,531.47 | E155: 1,239,298.42 | F155: 1,171,261.05 | G155: 1,126,953.76 | H155: 1,061,436.72 | I155: 2,000.00 | J155: =IF((C155/$B155)>$E$166,I157,B155) -> 2,000.00 | K155: 1,542,935.44 | L155: 771.47 | M155: 2,000.00 | N155: =IF((D155/$B155)>$E$166,M157,B155) -> 2,000.00 | O155: 1,348,531.47 | P155: 674.27 | Q155: 2,000.00 | R155: =IF((E155/$B155)>$E$166,Q157,B155) -> 2,000.00 | S155: 1,239,298.42 | T155: 619.65 | U155: 2,000.00 | V155: =IF((F155/$B155)>$E$166,U157,B155) -> 2,000.00 | W155: 1,171,261.05 | X155: 585.63 | Y155: 2,000.00 | Z155: =IF((G155/$B155)>$E$166,Y157,B155) -> 2,000.00 | AA155: 1,126,953.76 | AB155: 563.48 | AC155: 530.72 | AE155: 1.00 | AF155: 2,000.00 | AG155: 104,103.31 | AH155: 74,505.31 | AI155: 61,237.24 | AJ155: 54,501.15 | AK155: 51,031.04 | AL155: 48,989.79 | AM155: 0 | AN155: =IF((AG155/$AF155)>$AI$166,AM157,AF155) -> 1,800.00 | AO155: 85,487.19 | AP155: 47.49 | AQ155: 2,000.00 | AR155: =IF((AH155/$AF155)>$AI$166,AQ157,AF155) -> 2,000.00 | AS155: 74,505.31 | AT155: 37.25 | AU155: 2,000.00 | AV155: =IF((AI155/$AF155)>$AI$166,AU157,AF155) -> 2,000.00 | AW155: 61,237.24 | AX155: 30.62 | AY155: 2,000.00 | AZ155: =IF((AJ155/$AF155)>$AI$166,AY157,AF155) -> 2,000.00 | BA155: 54,501.15 | BB155: 27.25 | BC155: 2,000.00 | BD155: =IF((AK155/$AF155)>$AI$166,BC157,AF155) -> 2,000.00 | BE155: 51,031.04 | BF155: 25.52 | BG155: 24.49 | BI155: 1.00 | BJ155: 2,000.00 | BK155: 25,228.94 | BL155: 14,713.24 | BM155: 10,930.30 | BN155: 9,366.89 | BO155: 8,765.33 | BP155: 8,649.26 | BQ155: 0 | BR155: =IF((BK155/$BJ155)>$BM$166,BQ157,BJ155) -> 1,500.00 | BS155: 14,874.42 | BT155: 9.92 | BU155: 2,000.00 | BV155: =IF((BL155/$BJ155)>$BM$166,BU157,BJ155) -> 2,000.00 | BW155: 14,713.24 | BX155: 7.36 | BY155: 2,000.00 | BZ155: =IF((BM155/$BJ155)>$BM$166,BY157,BJ155) -> 2,000.00 | CA155: 10,930.30 | CB155: 5.47 | CC155: 2,000.00 | CD155: =IF((BN155/$BJ155)>$BM$166,CC157,BJ155) -> 2,000.00 | CE155: 9,366.89 | CF155: 4.68 | CG155: 2,000.00 | CH155: =IF((BO155/$BJ155)>$BM$166,CG157,BJ155) -> 2,000.00 | CI155: 8,765.33 | CJ155: 4.38 | CK155: 4.32
I157: =MAX(I136:I155) -> 2,000.00 | M157: =MAX(M136:M155) -> 2,000.00 | Q157: =MAX(Q136:Q155) -> 2,000.00 | U157: =MAX(U136:U155) -> 2,000.00 | Y157: =MAX(Y136:Y155) -> 2,000.00 | AM157: =MAX(AM136:AM155) -> 1,800.00 | AQ157: =MAX(AQ136:AQ155) -> 2,000.00 | AU157: =MAX(AU136:AU155) -> 2,000.00 | AY157: =MAX(AY136:AY155) -> 2,000.00 | BC157: =MAX(BC136:BC155) -> 2,000.00 | BQ157: =MAX(BQ136:BQ155) -> 1,500.00 | BU157: =MAX(BU136:BU155) -> 2,000.00 | BY157: =MAX(BY136:BY155) -> 2,000.00 | CC157: =MAX(CC136:CC155) -> 2,000.00 | CG157: =MAX(CG136:CG155) -> 2,000.00
B158: y | C158: =Costo_CP_REND_VAR!B7 -> 1,000.0 | AF158: y | AG158: =Costo_CP_REND_VAR!B7 -> 1,000.0 | BJ158: y | BK158: =Costo_CP_REND_VAR!B7 -> 1,000.0
B159: A | C159: =Costo_CP_REND_VAR!C7 -> 1.0 | AF159: A | AG159: =Costo_CP_REND_VAR!C7 -> 1.0 | BJ159: A | BK159: =Costo_CP_REND_VAR!C7 -> 1.0
B160: a | C160: =Costo_CP_REND_VAR!B11 -> 0.5 | AF160: a | AG160: =Costo_CP_REND_VAR!B12 -> 0.5 | BJ160: a | BK160: =Costo_CP_REND_VAR!B13 -> 0.5
B161: b | C161: =Costo_CP_REND_VAR!C11 -> 0.2 | AF161: b | AG161: =Costo_CP_REND_VAR!C12 -> 0.5 | BJ161: b | BK161: =Costo_CP_REND_VAR!C13 -> 0.8
B163: w1 | C163: =Costo_CP_REND_VAR!D7 -> 10.0 | AF163: w1 | AG163: =Costo_CP_REND_VAR!D7 -> 10.0 | BJ163: w1 | BK163: =Costo_CP_REND_VAR!D7 -> 10.0
B164: w2 | C164: =Costo_CP_REND_VAR!E7 -> 15.0 | AF164: w2 | AG164: =Costo_CP_REND_VAR!E7 -> 15.0 | BJ164: w2 | BK164: =Costo_CP_REND_VAR!E7 -> 15.0
B166: CT | C166: =(C160+C161)*((C158/C159)^(1/(C160+C161)))*((C163/C160)^(C160/(C160+C161)))*((C164/C161)^(C161/(C160+C161))) -> 394,322.2 | E166: =C177*2 -> 788.64 | AF166: CT | AG166: =(AG160+AG161)*((AG158/AG159)^(1/(AG160+AG161)))*((AG163/AG160)^(AG160/(AG160+AG161)))*((AG164/AG161)^(AG161/(AG160+AG161))) -> 24,494.9 | AI166: =AG177*2 -> 48.99 | BJ166: CT | BK166: =(BK160+BK161)*((BK158/BK159)^(1/(BK160+BK161)))*((BK163/BK160)^(BK160/(BK160+BK161)))*((BK164/BK161)^(BK161/(BK160+BK161))) -> 5,074.8 | BM166: =BK177*2 -> 10.15
B167: q1 | C167: =((C158/C159)^(1/(C160+C161)))*(((C160*C164)/(C161*C163))^(C161/(C160+C161))) -> 28,165.9 | AF167: q1 | AG167: =((AG158/AG159)^(1/(AG160+AG161)))*(((AG160*AG164)/(AG161*AG163))^(AG161/(AG160+AG161))) -> 1,224.7 | BJ167: q1 | BK167: =((BK158/BK159)^(1/(BK160+BK161)))*(((BK160*BK164)/(BK161*BK163))^(BK161/(BK160+BK161))) -> 195.2
B168: q2 | C168: =((C158/C159)^(1/(C160+C161)))*(((C161*C163)/(C160*C164))^(C160/(C160+C161))) -> 7,510.9 | AF168: q2 | AG168: =((AG158/AG159)^(1/(AG160+AG161)))*(((AG161*AG163)/(AG160*AG164))^(AG160/(AG160+AG161))) -> 816.5 | BJ168: q2 | BK168: =((BK158/BK159)^(1/(BK160+BK161)))*(((BK161*BK163)/(BK160*BK164))^(BK160/(BK160+BK161))) -> 208.2
B170: Q2 | C170: q1 | D170: CT | E170: y | AF170: Q2 | AG170: q1 | AH170: CT | AI170: y | BJ170: Q2 | BK170: q1 | BL170: CT | BM170: y
A171: 1 | B171: =Costo_CP_REND_VAR!C22 -> 3,755.4 | C171: =((C158/$C$159)^(1/$C$160))*(B171^(-$C$161/$C$160)) -> 37,165.1 | D171: =$C$163*(($C$158/$C$159)^(1/$C$160))*(B171^(-$C$161/$C$160))+($C$164*B171) -> 427,982.7 | E171: =$C$159*(C171^$C$160)*(B171^$C$161) -> 1,000.0 | AE171: 1 | AF171: =Costo_CP_REND_VAR!D22 -> 408.2 | AG171: =(($AG$158/$AG$159)^(1/$AG$160))*(AF171^(-$AG$161/$AG$160)) -> 2,449.5 | AH171: =$AG$163*(($AG$158/$AG$159)^(1/$AG$160))*(AF171^(-$AG$161/$AG$160))+($AG$164*AF171) -> 30,618.6 | AI171: =$AG$159*(AG171^$AG$160)*(AF171^$AG$161) -> 1,000.0 | BI171: 1 | BJ171: =Costo_CP_REND_VAR!E22 -> 104.1 | BK171: =(($BK$158/$BK$159)^(1/$BK$160))*(BJ171^(-$BK$161/$BK$160)) -> 591.7 | BL171: =$BK$163*(($BK$158/$BK$159)^(1/$BK$160))*(BJ171^(-$BK$161/$BK$160))+($BK$164*BJ171) -> 7,478.3 | BM171: =$BK$159*(BK171^$BK$160)*(BJ171^$BK$161) -> 1,000.0
A172: 2 | B172: =Costo_CP_REND_VAR!C23 -> 5,633.2 | C172: =(($C$158/$C$159)^(1/$C$160))*(B172^(-$C$161/$C$160)) -> 31,600.8 | D172: =$C$163*(($C$158/$C$159)^(1/$C$160))*(B172^(-$C$161/$C$160))+($C$164*B172) -> 400,506.1 | E172: =$C$159*(C172^$C$160)*(B172^$C$161) -> 1,000.0 | AE172: 2 | AF172: =Costo_CP_REND_VAR!D23 -> 612.4 | AG172: =(($AG$158/$AG$159)^(1/$AG$160))*(AF172^(-$AG$161/$AG$160)) -> 1,633.0 | AH172: =$AG$163*(($AG$158/$AG$159)^(1/$AG$160))*(AF172^(-$AG$161/$AG$160))+($AG$164*AF172) -> 25,515.5 | AI172: =$AG$159*(AG172^$AG$160)*(AF172^$AG$161) -> 1,000.0 | BI172: 2 | BJ172: =Costo_CP_REND_VAR!E23 -> 156.1 | BK172: =(($BK$158/$BK$159)^(1/$BK$160))*(BJ172^(-$BK$161/$BK$160)) -> 309.3 | BL172: =$BK$163*(($BK$158/$BK$159)^(1/$BK$160))*(BJ172^(-$BK$161/$BK$160))+($BK$164*BJ172) -> 5,435.0 | BM172: =$BK$159*(BK172^$BK$160)*(BJ172^$BK$161) -> 1,000.0
A173: 3 | B173: =Costo_CP_REND_VAR!C24 -> 7,510.9 | C173: =(($C$158/$C$159)^(1/$C$160))*(B173^(-$C$161/$C$160)) -> 28,165.9 | D173: =$C$163*(($C$158/$C$159)^(1/$C$160))*(B173^(-$C$161/$C$160))+($C$164*B173) -> 394,322.2 | E173: =$C$159*(C173^$C$160)*(B173^$C$161) -> 1,000.0 | AE173: 3 | AF173: =Costo_CP_REND_VAR!D24 -> 816.5 | AG173: =(($AG$158/$AG$159)^(1/$AG$160))*(AF173^(-$AG$161/$AG$160)) -> 1,224.7 | AH173: =$AG$163*(($AG$158/$AG$159)^(1/$AG$160))*(AF173^(-$AG$161/$AG$160))+($AG$164*AF173) -> 24,494.9 | AI173: =$AG$159*(AG173^$AG$160)*(AF173^$AG$161) -> 1,000.0 | BI173: 3 | BJ173: =Costo_CP_REND_VAR!E24 -> 208.2 | BK173: =(($BK$158/$BK$159)^(1/$BK$160))*(BJ173^(-$BK$161/$BK$160)) -> 195.2 | BL173: =$BK$163*(($BK$158/$BK$159)^(1/$BK$160))*(BJ173^(-$BK$161/$BK$160))+($BK$164*BJ173) -> 5,074.8 | BM173: =$BK$159*(BK173^$BK$160)*(BJ173^$BK$161) -> 1,000.0
A174: 4 | B174: =Costo_CP_REND_VAR!C25 -> 9,388.6 | C174: =(($C$158/$C$159)^(1/$C$160))*(B174^(-$C$161/$C$160)) -> 25,760.8 | D174: =$C$163*(($C$158/$C$159)^(1/$C$160))*(B174^(-$C$161/$C$160))+($C$164*B174) -> 398,437.3 | E174: =$C$159*(C174^$C$160)*(B174^$C$161) -> 1,000.0 | AE174: 4 | AF174: =Costo_CP_REND_VAR!D25 -> 1,020.6 | AG174: =(($AG$158/$AG$159)^(1/$AG$160))*(AF174^(-$AG$161/$AG$160)) -> 979.8 | AH174: =$AG$163*(($AG$158/$AG$159)^(1/$AG$160))*(AF174^(-$AG$161/$AG$160))+($AG$164*AF174) -> 25,107.3 | AI174: =$AG$159*(AG174^$AG$160)*(AF174^$AG$161) -> 1,000.0 | BI174: 4 | BJ174: =Costo_CP_REND_VAR!E25 -> 260.2 | BK174: =(($BK$158/$BK$159)^(1/$BK$160))*(BJ174^(-$BK$161/$BK$160)) -> 136.6 | BL174: =$BK$163*(($BK$158/$BK$159)^(1/$BK$160))*(BJ174^(-$BK$161/$BK$160))+($BK$164*BJ174) -> 5,269.5 | BM174: =$BK$159*(BK174^$BK$160)*(BJ174^$BK$161) -> 1,000.0
A175: 5 | B175: =Costo_CP_REND_VAR!C26 -> 11,266.3 | C175: =(($C$158/$C$159)^(1/$C$160))*(B175^(-$C$161/$C$160)) -> 23,949.0 | D175: =$C$163*(($C$158/$C$159)^(1/$C$160))*(B175^(-$C$161/$C$160))+($C$164*B175) -> 408,484.9 | E175: =$C$159*(C175^$C$160)*(B175^$C$161) -> 1,000.0 | AE175: 5 | AF175: =Costo_CP_REND_VAR!D26 -> 1,224.7 | AG175: =(($AG$158/$AG$159)^(1/$AG$160))*(AF175^(-$AG$161/$AG$160)) -> 816.5 | AH175: =$AG$163*(($AG$158/$AG$159)^(1/$AG$160))*(AF175^(-$AG$161/$AG$160))+($AG$164*AF175) -> 26,536.1 | AI175: =$AG$159*(AG175^$AG$160)*(AF175^$AG$161) -> 1,000.0 | BI175: 5 | BJ175: =Costo_CP_REND_VAR!E26 -> 312.3 | BK175: =(($BK$158/$BK$159)^(1/$BK$160))*(BJ175^(-$BK$161/$BK$160)) -> 102.0 | BL175: =$BK$163*(($BK$158/$BK$159)^(1/$BK$160))*(BJ175^(-$BK$161/$BK$160))+($BK$164*BJ175) -> 5,704.6 | BM175: =$BK$159*(BK175^$BK$160)*(BJ175^$BK$161) -> 1,000.0
B177: CMe | C177: =C166/C158 -> 394.3 | AF177: CMe | AG177: =AG166/AG158 -> 24.5 | BJ177: CMe | BK177: =BK166/BK158 -> 5.1
B181: PT 3 | C181: CMe 3 | D181: PT 1 | E181: CMe 1 | F181: PT 2 | G181: CMe 2 | H181: PT LP | I181: CMe LP
B182: =AV136 -> 300.00 | C182: =AX136 -> 44.50 | D182: =J136 -> 100.00 | E182: =(L136/$L$142)*$C$188 -> 45.96 | F182: =N136 -> 200.00 | G182: =(P140/$P$139)*$C$188 -> 25.25 | H182: =B136 -> 100.00 | I182: =(AC136/$AC$155)*$C$191 -> 6.78
B183: =AV137 -> 300.00 | C183: =AX137 -> 44.50 | D183: =J137 -> 200.00 | E183: =(L137/$L$142)*$C$188 -> 27.25 | F183: =N137 -> 200.00 | G183: =(P141/$P$139)*$C$188 -> 25.51 | H183: =B137 -> 200.00 | I183: 9.13
B184: 300.00 | C184: 44.50 | D184: 300.00 | E184: 22.90 | F184: 300.00 | G184: 26.40 | H184: 300.00 | I184: 10.86
B185: 400.00 | C185: 35.52 | D185: 400.00 | E185: 22.16 | F185: 400.00 | G185: 27.67 | H185: 400.00 | I185: 12.29
B186: 500.00 | C186: 30.62 | D186: 500.00 | E186: 22.84 | F186: 500.00 | G186: 29.21 | H186: 500.00 | I186: 13.52
B187: 600.00 | C187: 27.76 | D187: 600.00 | E187: 24.25 | F187: 600.00 | G187: 30.92 | H187: 600.00 | I187: 14.62
B188: 700.00 | C188: 26.07 | D188: 700.00 | E188: 26.07 | F188: 700.00 | G188: 32.77 | H188: 700.00 | I188: 15.62
B189: 800.00 | C189: 25.11 | D189: 800.00 | E189: 28.14 | F189: 800.00 | G189: 34.72 | H189: 800.00 | I189: 16.54
B190: 900.00 | C190: 24.63 | D190: 900.00 | E190: 30.39 | F190: 900.00 | G190: 36.74 | H190: 900.00 | I190: 17.40
B191: 1,000.00 | C191: 24.49 | D191: 1,000.00 | E191: 32.76 | F191: 1,000.00 | G191: 38.82 | H191: 1,000.00 | I191: 18.20
B192: 1,100.00 | C192: 24.61 | D192: 1,100.00 | E192: 35.21 | F192: 1,100.00 | G192: 40.95 | H192: 1,100.00 | I192: 18.96
B193: 1,200.00 | C193: 24.90 | D193: 1,200.00 | E193: 37.73 | F193: 1,200.00 | G193: 43.12 | H193: 1,200.00 | I193: 19.68
B194: 1,300.00 | C194: 25.34 | D194: 1,300.00 | E194: 40.29 | F194: 1,300.00 | G194: 45.32 | H194: 1,300.00 | I194: 20.37
B195: 1,400.00 | C195: 25.89 | D195: 1,400.00 | E195: 42.90 | F195: 1,400.00 | G195: 47.54 | H195: 1,400.00 | I195: 21.02
B196: 1,500.00 | C196: 26.54 | D196: 1,500.00 | E196: 45.54 | F196: 1,500.00 | G196: 49.79 | H196: 1,500.00 | I196: 21.65
B197: 1,600.00 | C197: 27.25 | D197: 1,600.00 | E197: 48.20 | F197: 1,600.00 | G197: 52.06 | H197: 1,600.00 | I197: 22.26
B198: 1,700.00 | C198: 28.03 | D198: 1,700.00 | E198: 50.89 | H198: 1,700.00 | I198: 22.85
B199: 1,800.00 | C199: 28.85 | D199: 1,800.00 | E199: 53.59 | H199: 1,800.00 | I199: 23.41
B200: 1,900.00 | C200: 29.72 | D200: 1,900.00 | E200: 56.31 | H200: 1,900.00 | I200: 23.96
B201: 2,000.00 | C201: 30.62 | D201: 2,000.00 | E201: 59.04 | H201: 2,000.00 | I201: =(AC155/$AC$155)*$C$191 -> 24.49
A207: COSTOS CORTO PLAZO
A209: Ponderador | B209: PT | C209: CT 1 | D209: CT 2 | E209: CT 3 | F209: CT 4 | G209: CT 5 | H209: CT LP | I209: ALFA | J209: BETA | K209: Cme 1 | L209: Cme 2 | M209: Cme 3 | N209: Cme 4 | O209: Cme 5 | P209: CMe LP
A210: 0 | B210: =A210*1.25*$C$233 -> 0 | C210: =($C$238*((B210/$C$234)^(1/I210))*($B$246^(-J210/I210)))+($C$239*$B$246) -> 8,483.43 | D210: =($C$238*((B210/$C$234)^(1/I210))*($B$247^(-J210/I210)))+($C$239*$B$247) -> 12,725.14 | E210: =($C$238*((B210/$C$234)^(1/I210))*($B$248^(-J210/I210)))+($C$239*$B$248) -> 16,966.86 | F210: =($C$238*((B210/$C$234)^(1/I210))*($B$249^(-J210/I210)))+($C$239*$B$249) -> 21,208.57 | G210: =($C$238*((B210/$C$234)^(1/I210))*($B$250^(-J210/I210)))+($C$239*$B$250) -> 25,450.29 | H210: =(I210+J210)*((B210/$C$234)^(1/(I210+J210)))*(($C$238/I210)^(I210/(I210+J210)))*(($C$239/J210)^(J210/(I210+J210))) -> 0 | I210: =+I211+0.08 -> 2.02 | J210: =I210 -> 2.02
A211: 0.05 | B211: =A211*1.25*$C$233 -> 6.25 | C211: =($C$238*((B211/$C$234)^(1/I211))*($B$246^(-J211/I211)))+($C$239*$B$246) -> 8,604.69 | D211: =($C$238*((B211/$C$234)^(1/I211))*($B$247^(-J211/I211)))+($C$239*$B$247) -> 12,805.99 | E211: =($C$238*((B211/$C$234)^(1/I211))*($B$248^(-J211/I211)))+($C$239*$B$248) -> 17,027.49 | F211: =($C$238*((B211/$C$234)^(1/I211))*($B$249^(-J211/I211)))+($C$239*$B$249) -> 21,257.08 | G211: =($C$238*((B211/$C$234)^(1/I211))*($B$250^(-J211/I211)))+($C$239*$B$250) -> 25,490.71 | H211: =(I211+J211)*((B211/$C$234)^(1/(I211+J211)))*(($C$238/I211)^(I211/(I211+J211)))*(($C$239/J211)^(J211/(I211+J211))) -> 2,028.54 | I211: 1.94 | J211: 1.94 | K211: =C211/$B211 -> 1,376.75 | L211: =D211/$B211 -> 2,048.96 | M211: =E211/$B211 -> 2,724.40 | N211: =F211/$B211 -> 3,401.13 | O211: =G211/$B211 -> 4,078.51 | P211: =H211/$B211 -> 324.57
A212: 0.10 | B212: 12.50 | C212: 8,666.76 | D212: 12,847.36 | E212: 17,058.52 | F212: 21,281.90 | G212: 25,511.40 | H212: 2,494.18 | I212: 1.86 | J212: 1.86 | K212: 693.34 | L212: 1,027.79 | M212: 1,364.68 | N212: 1,702.55 | O212: 2,040.91 | P212: 199.53
A213: 0.15 | B213: 18.75 | C213: 8,728.14 | D213: 12,888.29 | E213: 17,089.21 | F213: 21,306.46 | G213: 25,531.86 | H213: 2,881.67 | I213: 1.78 | J213: 1.78 | K213: 465.50 | L213: 687.38 | M213: 911.42 | N213: 1,136.34 | O213: 1,361.70 | P213: 153.69
A214: 0.20 | B214: 25.00 | C214: 8,796.62 | D214: 12,933.94 | E214: 17,123.45 | F214: 21,333.85 | G214: 25,554.68 | H214: 3,260.01 | I214: 1.70 | J214: 1.70 | K214: 351.86 | L214: 517.36 | M214: 684.94 | N214: 853.35 | O214: 1,022.19 | P214: 130.40
A215: 0.25 | B215: 31.25 | C215: 8,878.10 | D215: 12,988.26 | E215: 17,164.19 | F215: 21,366.44 | G215: 25,581.84 | H215: 3,659.60 | I215: 1.62 | J215: 1.62 | K215: 284.10 | L215: 415.62 | M215: 549.25 | N215: 683.73 | O215: 818.62 | P215: 117.11
A216: 0.30 | B216: 37.50 | C216: 8,979.55 | D216: 13,055.89 | E216: 17,214.92 | F216: 21,407.02 | G216: 25,615.66 | H216: 4,103.07 | I216: 1.54 | J216: 1.54 | K216: 239.45 | L216: 348.16 | M216: 459.06 | N216: 570.85 | O216: 683.08 | P216: 109.42
A217: 0.35 | B217: 43.75 | C217: 9,110.69 | D217: 13,143.32 | E217: 17,280.49 | F217: 21,459.48 | G217: 25,659.37 | H217: 4,613.59 | I217: 1.46 | J217: 1.46 | K217: 208.24 | L217: 300.42 | M217: 394.98 | N217: 490.50 | O217: 586.50 | P217: 105.45
A218: 0.40 | B218: 50.00 | C218: 9,286.26 | D218: 13,260.37 | E218: 17,368.28 | F218: 21,529.71 | G218: 25,717.90 | H218: 5,219.50 | I218: 1.38 | J218: 1.38 | K218: 185.73 | L218: 265.21 | M218: 347.37 | N218: 430.59 | O218: 514.36 | P218: 104.39
A219: 0.45 | B219: 56.25 | C219: 9,529.92 | D219: 13,422.81 | E219: 17,490.10 | F219: 21,627.17 | G219: 25,799.12 | H219: 5,959.15 | I219: 1.30 | J219: 1.30 | K219: 169.42 | L219: 238.63 | M219: 310.94 | N219: 384.48 | O219: 458.65 | P219: 105.94
A220: 0.50 | B220: 62.50 | C220: 9,881.47 | D220: 13,657.17 | E220: 17,665.88 | F220: 21,767.79 | G220: 25,916.30 | H220: 6,887.73 | I220: 1.22 | J220: 1.22 | K220: 158.10 | L220: 218.51 | M220: 282.65 | N220: 348.28 | O220: 414.66 | P220: 110.20
A221: 0.55 | B221: 68.75 | C221: 10,411.54 | D221: 14,010.55 | E221: 17,930.91 | F221: 21,979.82 | G221: 26,092.99 | H221: 8,088.75 | I221: 1.14 | J221: 1.14 | K221: 151.44 | L221: 203.79 | M221: 260.81 | N221: 319.71 | O221: 379.53 | P221: 117.65
A222: 0.60 | B222: 75.00 | C222: 11,253.01 | D222: 14,571.53 | E222: 18,351.65 | F222: 22,316.41 | G222: 26,373.48 | H222: 9,694.44 | I222: 1.06 | J222: 1.06 | K222: 150.04 | L222: 194.29 | M222: 244.69 | N222: 297.55 | O222: 351.65 | P222: 129.26
A223: 0.65 | B223: 81.25 | C223: 12,674.14 | D223: 15,518.95 | E223: 19,062.21 | F223: 22,884.86 | G223: 26,847.19 | H223: 11,925.04 | I223: 0.98 | J223: 0.98 | K223: 155.99 | L223: 191.00 | M223: 234.61 | N223: 281.66 | O223: 330.43 | P223: 146.77
A224: 0.70 | B224: 87.50 | C224: 15,264.14 | D224: 17,245.62 | E224: 20,357.21 | F224: 23,920.86 | G224: 27,710.52 | H224: 15,168.87 | I224: 0.90 | J224: 0.90 | K224: 174.45 | L224: 197.09 | M224: 232.65 | N224: 273.38 | O224: 316.69 | P224: 173.36
A225: 0.75 | B225: 93.75 | C225: 20,459.97 | D225: 20,709.51 | E225: 22,955.13 | F225: 25,999.19 | G225: 29,442.47 | H225: 20,159.58 | I225: 0.82 | J225: 0.82 | K225: 218.24 | L225: 220.90 | M225: 244.85 | N225: 277.32 | O225: 314.05 | P225: 215.04
A226: 0.80 | B226: 100.00 | C226: 32,262.30 | D226: 28,577.73 | E226: 28,856.29 | F226: 30,720.12 | G226: 33,376.58 | H226: 28,406.08 | I226: 0.74 | J226: 0.74 | K226: 322.62 | L226: 285.78 | M226: 288.56 | N226: 307.20 | O226: 333.77 | P226: 284.06
A227: 0.85 | B227: 106.25 | C227: 63,905.65 | D227: 49,673.29 | E227: 44,677.97 | F227: 43,377.46 | G227: 43,924.36 | H227: 43,366.83 | I227: 0.66 | J227: 0.66 | K227: 601.46 | L227: 467.51 | M227: 420.50 | N227: 408.26 | O227: 413.41 | P227: 408.16
A228: 0.90 | B228: 112.50 | C228: 170,648.92 | D228: 120,835.47 | E228: 98,049.60 | F228: 86,074.77 | G228: 79,505.45 | H228: 74,181.38 | I228: =+I229+0.08 -> 0.58 | J228: 0.58 | K228: 1,516.88 | L228: 1,074.09 | M228: 871.55 | N228: 765.11 | O228: 706.72 | P228: 659.39
A229: 0.95 | B229: 118.75 | C229: 673,382.61 | D229: 455,991.27 | E229: 349,416.45 | F229: 287,168.25 | G229: 247,083.35 | H229: 150,208.19 | I229: 0.50 | J229: 0.50 | K229: 5,670.59 | L229: 3,839.93 | M229: 2,942.45 | N229: 2,418.26 | O229: 2,080.70 | P229: 1,264.91
A230: 1.00 | B230: 125.00 | C230: 1,373,064.14 | D230: 922,445.62 | E230: 699,257.21 | F230: 567,040.86 | G230: 480,310.52 | H230: 215,186.65 | I230: =I229-0.03 -> 0.47 | J230: =I230 -> 0.47 | K230: 10,984.51 | L230: 7,379.56 | M230: 5,594.06 | N230: 4,536.33 | O230: 3,842.48 | P230: 1,721.49
BH232: =MAX(Y211:Y230) -> 0 | BL232: =MAX(AC211:AC230) -> 0 | BP232: =MAX(AG211:AG230) -> 0
B233: y | C233: ='Costo CP AB VAR'!D7 -> 100.0
B234: A | C234: ='Costo CP AB VAR'!D8 -> 1.0
... 14 more rows

Sheet Costo CP AB VAR (hidden)
A1: FUNCIÒN DE COSTO
A2: CORTO PLAZO
B4: Inserte los datos correspondientes
B6: PARÁMETROS DE LA FUNCIÓN DE PRODUCCIÓN
B7: y | D7: 100.0
B8: A | D8: 1.0
B9: a | D9: 0.7
B10: b | D10: 0.7
B12: COSTO DE LOS FACTORES
B13: w1 | D13: 200.0
B14: w2 | D14: 2,000.0
B16: LARGO PLAZO
B17: CT | D17: ='Oculto Cos CP'!C241 -> 33,933.7
B18: q1 | D18: ='Oculto Cos CP'!C242 -> 84.8
B19: q2 | D19: ='Oculto Cos CP'!C243 -> 8.5
H20: =0.2*D19 -> 1.696685796
B21: CORTO PLAZO
B22: Q2 | C22: q1 | D22: CT
B23: =D19*0.5 -> 4.2 | C23: ='Oculto Cos CP'!C246 -> 169.7 | D23: ='Oculto Cos CP'!D246 -> 42,417.1
B24: =D19*0.75 -> 6.4 | C24: ='Oculto Cos CP'!C247 -> 113.1 | D24: ='Oculto Cos CP'!D247 -> 35,347.6
B25: =D19*1 -> 8.5 | C25: ='Oculto Cos CP'!C248 -> 84.8 | D25: ='Oculto Cos CP'!D248 -> 33,933.7
B26: =D19*1.25 -> 10.6 | C26: ='Oculto Cos CP'!C249 -> 67.9 | D26: ='Oculto Cos CP'!D249 -> 34,782.1
B27: =D19*1.5 -> 12.7 | C27: ='Oculto Cos CP'!C250 -> 56.6 | D27: ='Oculto Cos CP'!D250 -> 36,761.5
B30: Títulos
B31: Resultados
B32: Insertar Datos
H57: =(($B$82/$B$84)^($B$84/($B$82+$B$84))+($B$82/$B$84)^((-$B$82)/($B$82+$B$84)))*($B$86^($B$82/($B$82+$B$84)))*($B$87^($B$84/($B$82+$B$84)))*(1/($B$82+$B$84))*(E57^((1/($B$82+$B$84))-1)) -> 
G81: =F76 -> 0
B82: 0.2 | G82: =G80-1 -> -1 | H82: =G81^G82 -> 
